Workbook

Sheet Borçlanma ve Diğer Araç İhracı
A1: 2019 YILI İZAHNAME/İHRAÇ BELGESİ ONAYLANAN BORÇLANMA VE DİĞER SERMAYE PİYASASI ARAÇLARI ÖZET DURUM TABLOSU
A2: Sıra | B2: Şirket Adı | C2: Grubu | D2: Sermaye Piyasası Aracının Türü | E2: İzahname/İhraç Belgesi Başvuru Tarihi | F2: İşlemden Kaldırma/Olumsuz Sonuçlanma Tarihi | G2: İzahname/ihraç Belgesi Kurul Kararı Tarihi | H2: Satış Yöntemi | I2: Yurtiçi İhraç Limiti Nominal Tutar (TL) | J2: Yurtiçi İhraç Limiti Nominal Tutar ABD Doları Karşılığı* | K2: Yurtiçi Satışı Gerçekleşen Nominal Tutar (TL) | L2: Yurtiçi Satışa Hazır Nominal Tutar (TL) | M2: YURTDIŞI İhraç Limiti Nominal Tutar | N2: YURTDIŞI İhraç Limiti Para Birimi | O2: YURTDIŞI Satışı Gerçekleşen Nominal Tutar | P2: YURTDIŞI Satışa Hazır Nominal Tutar | Q2: YURTDIŞI Satışı Gerçekleşen Nominal Tutar (TL)**
A3: 1 | B3: AKTİF BANK SUKUK VARLIK KİRALAMA A.Ş. | C3: Finansal Kurum | D3: Kira Sertifikası | E3: 24.04.2017 18.06.2018 | G3: 2019-01-17 | H3: HALKA ARZ VE/VEYA NİTELİKLİ | I3: 300,000,000.00 | J3: =Table5402945[[#This Row],[Yurtiçi İhraç Limiti Nominal Tutar (TL)]]/5.3659 -> 55,908,608.06 | K3: 0.00 | L3: =Table5402945[[#This Row],[Yurtiçi İhraç Limiti Nominal Tutar (TL)]]-Table5402945[[#This Row],[Yurtiçi Satışı Gerçekleşen Nominal Tutar (TL)]] -> 300,000,000.00
A4: 2 | B4: AYTEMİZ AKARYAKIT DAĞITIM A.Ş. | C4: Reel Sektör | D4: Borçlanma Aracı | E4: 2018-11-15 | G4: 2019-01-17 | H4: NİTELİKLİ | I4: 300,000,000.00 | J4: =Table5402945[[#This Row],[Yurtiçi İhraç Limiti Nominal Tutar (TL)]]/5.3659 -> 55,908,608.06 | K4: 50,000,000.00 | L4: =Table5402945[[#This Row],[Yurtiçi İhraç Limiti Nominal Tutar (TL)]]-Table5402945[[#This Row],[Yurtiçi Satışı Gerçekleşen Nominal Tutar (TL)]] -> 250,000,000.00
A5: 3 | B5: İŞ YATIRIM MENKUL DEĞERLER A.Ş. | C5: Finansal Kurum | D5: Borçlanma Aracı | E5: 2018-12-03 | G5: 2019-01-03 | H5: NİTELİKLİ VE/VEYA TAHSİSLİ | I5: 1,800,000,000.00 | J5: =Table5402945[[#This Row],[Yurtiçi İhraç Limiti Nominal Tutar (TL)]]/5.4686 -> 329,151,885.31 | K5: 1,800,000,000.00 | L5: =Table5402945[[#This Row],[Yurtiçi İhraç Limiti Nominal Tutar (TL)]]-Table5402945[[#This Row],[Yurtiçi Satışı Gerçekleşen Nominal Tutar (TL)]] -> 0.00
A6: 4 | B6: ŞEKER FİNANSAL KİRALAMA A.Ş. | C6: Finansal Kurum | D6: Borçlanma Aracı | E6: 2018-12-05 | G6: 2019-01-10 | H6: HALKA ARZ VE/VEYA NİTELİKLİ VE/VEYA TAHSİSLİ | I6: 180,000,000.00 | J6: =Table5402945[[#This Row],[Yurtiçi İhraç Limiti Nominal Tutar (TL)]]/5.4724 -> 32,892,332.43 | K6: 180,000,000.00 | L6: =Table5402945[[#This Row],[Yurtiçi İhraç Limiti Nominal Tutar (TL)]]-Table5402945[[#This Row],[Yurtiçi Satışı Gerçekleşen Nominal Tutar (TL)]] -> 0.00
A7: 5 | B7: İNALLAR OTOMOTİV SANAYİ VE TİCARET A.Ş. | C7: Reel Sektör | D7: Borçlanma Aracı | E7: 2018-12-11 | G7: 2019-02-28 | H7: NİTELİKLİ | I7: 60,000,000.00 | J7: =Table5402945[[#This Row],[Yurtiçi İhraç Limiti Nominal Tutar (TL)]]/5.3273 -> 11,262,740.98 | K7: 30,000,000.00 | L7: =Table5402945[[#This Row],[Yurtiçi İhraç Limiti Nominal Tutar (TL)]]-Table5402945[[#This Row],[Yurtiçi Satışı Gerçekleşen Nominal Tutar (TL)]] -> 30,000,000.00
A8: 6 | B8: TÜPRAŞ TÜRKİYE PETROL RAFİNERİLERİ A.Ş. | C8: Reel Sektör | D8: Borçlanma Aracı | E8: 2018-12-11 | G8: 2019-01-03 | H8: NİTELİKLİ | I8: 1,000,000,000.00 | J8: =Table5402945[[#This Row],[Yurtiçi İhraç Limiti Nominal Tutar (TL)]]/5.4686 -> 182,862,158.50 | K8: 650,000,000.00 | L8: =Table5402945[[#This Row],[Yurtiçi İhraç Limiti Nominal Tutar (TL)]]-Table5402945[[#This Row],[Yurtiçi Satışı Gerçekleşen Nominal Tutar (TL)]] -> 350,000,000.00
A9: 7 | B9: ASLAN ÇİMENTO A.Ş. | C9: Reel Sektör | D9: Borçlanma Aracı | E9: 2018-12-14 | G9: 2019-01-10 | H9: NİTELİKLİ | I9: 500,000,000.00 | J9: =Table5402945[[#This Row],[Yurtiçi İhraç Limiti Nominal Tutar (TL)]]/5.4724 -> 91,367,590.09 | K9: 130,000,000.00 | L9: =Table5402945[[#This Row],[Yurtiçi İhraç Limiti Nominal Tutar (TL)]]-Table5402945[[#This Row],[Yurtiçi Satışı Gerçekleşen Nominal Tutar (TL)]] -> 370,000,000.00
A10: 8 | B10: TACİRLER YATIRIM MENKUL DEĞERLER A.Ş. | C10: Finansal Kurum | D10: Borçlanma Aracı | E10: 2018-12-14 | G10: 2019-01-03 | H10: NİTELİKLİ | I10: 350,000,000.00 | J10: =Table5402945[[#This Row],[Yurtiçi İhraç Limiti Nominal Tutar (TL)]]/5.4686 -> 64,001,755.48 | K10: 350,000,000.00 | L10: =Table5402945[[#This Row],[Yurtiçi İhraç Limiti Nominal Tutar (TL)]]-Table5402945[[#This Row],[Yurtiçi Satışı Gerçekleşen Nominal Tutar (TL)]] -> 0.00
A11: 9 | B11: FİBABANKA A.Ş. | C11: Banka | D11: Borçlanma Aracı | E11: 2018-12-17 | G11: 2019-01-03 | H11: NİTELİKLİ VE/VEYA TAHSİSLİ | I11: 2,350,000,000.00 | J11: =Table5402945[[#This Row],[Yurtiçi İhraç Limiti Nominal Tutar (TL)]]/5.4686 -> 429,726,072.49 | K11: 1,559,045,000.00 | L11: =Table5402945[[#This Row],[Yurtiçi İhraç Limiti Nominal Tutar (TL)]]-Table5402945[[#This Row],[Yurtiçi Satışı Gerçekleşen Nominal Tutar (TL)]] -> 790,955,000.00
A12: 10 | B12: ADANA ÇİMENTO SANAYİİ T.A.Ş. | C12: Reel Sektör | D12: Borçlanma Aracı | E12: 2018-12-18 | G12: 2019-01-10 | H12: NİTELİKLİ | I12: 500,000,000.00 | J12: =Table5402945[[#This Row],[Yurtiçi İhraç Limiti Nominal Tutar (TL)]]/5.4724 -> 91,367,590.09 | K12: 0.00 | L12: =Table5402945[[#This Row],[Yurtiçi İhraç Limiti Nominal Tutar (TL)]]-Table5402945[[#This Row],[Yurtiçi Satışı Gerçekleşen Nominal Tutar (TL)]] -> 500,000,000.00
A13: 11 | B13: AK FİNANSAL KİRALAMA A.Ş. | C13: Finansal Kurum | D13: Borçlanma Aracı | E13: 2018-12-18 | G13: 2019-01-10 | H13: NİTELİKLİ VE/VEYA TAHSİSLİ | I13: 1,150,000,000.00 | J13: =Table5402945[[#This Row],[Yurtiçi İhraç Limiti Nominal Tutar (TL)]]/5.4724 -> 210,145,457.20 | K13: 1,150,000.00 | L13: =Table5402945[[#This Row],[Yurtiçi İhraç Limiti Nominal Tutar (TL)]]-Table5402945[[#This Row],[Yurtiçi Satışı Gerçekleşen Nominal Tutar (TL)]] -> 1,148,850,000.00
A14: 12 | B14: TÜRKİYE VAKIFLAR BANKASI T.A.O. | C14: Banka | D14: Borçlanma Aracı | E14: 2018-12-19 | G14: 2019-01-10 | H14: YURTDIŞI | M14: 5,000,000,000.00 | N14: ABD Doları | O14: 1,450,000,000.00 | P14: =Table5402945[[#This Row],[YURTDIŞI İhraç Limiti Nominal Tutar]]-Table5402945[[#This Row],[YURTDIŞI Satışı Gerçekleşen Nominal Tutar]] -> 3,550,000,000.00 | Q14: =Table5402945[[#This Row],[YURTDIŞI Satışı Gerçekleşen Nominal Tutar]]*5.9507 -> 8,628,515,000.00
A15: 13 | B15: OPET PETROLCÜLÜK A.Ş. | C15: Reel Sektör | D15: Borçlanma Aracı | E15: 2018-12-19 | G15: 2019-01-17 | H15: NİTELİKLİ | I15: 500,000,000.00 | J15: =Table5402945[[#This Row],[Yurtiçi İhraç Limiti Nominal Tutar (TL)]]/5.3659 -> 93,181,013.44 | K15: 250,000,000.00 | L15: =Table5402945[[#This Row],[Yurtiçi İhraç Limiti Nominal Tutar (TL)]]-Table5402945[[#This Row],[Yurtiçi Satışı Gerçekleşen Nominal Tutar (TL)]] -> 250,000,000.00
A16: 14 | B16: TÜRKİYE HALK BANKASI A.Ş. | C16: Banka | D16: Borçlanma Aracı | E16: 2018-12-21 | G16: 2019-01-17 | H16: YURTDIŞI | M16: 2,000,000,000.00 | N16: ABD Doları | O16: 0.00 | P16: =Table5402945[[#This Row],[YURTDIŞI İhraç Limiti Nominal Tutar]]-Table5402945[[#This Row],[YURTDIŞI Satışı Gerçekleşen Nominal Tutar]] -> 2,000,000,000.00 | Q16: =Table5402945[[#This Row],[YURTDIŞI Satışı Gerçekleşen Nominal Tutar]]*5.9507 -> 0.00
A17: 15 | B17: YAPI KREDİ FİNANSAL KİRALAMA A.O. | C17: Finansal Kurum | D17: Borçlanma Aracı | E17: 2018-12-21 | G17: 2019-01-10 | H17: NİTELİKLİ | I17: 4,500,000,000.00 | J17: =Table5402945[[#This Row],[Yurtiçi İhraç Limiti Nominal Tutar (TL)]]/5.4724 -> 822,308,310.80 | K17: 270,000,000.00 | L17: =Table5402945[[#This Row],[Yurtiçi İhraç Limiti Nominal Tutar (TL)]]-Table5402945[[#This Row],[Yurtiçi Satışı Gerçekleşen Nominal Tutar (TL)]] -> 4,230,000,000.00
A18: 16 | B18: AK YATIRIM MENKUL DEĞERLER A.Ş. | C18: Finansal Kurum | D18: Borçlanma Aracı | E18: 2018-12-24 | G18: 2019-01-17 | H18: NİTELİKLİ | I18: 500,000,000.00 | J18: =Table5402945[[#This Row],[Yurtiçi İhraç Limiti Nominal Tutar (TL)]]/5.4724 -> 91,367,590.09 | K18: 499,679,000.00 | L18: =Table5402945[[#This Row],[Yurtiçi İhraç Limiti Nominal Tutar (TL)]]-Table5402945[[#This Row],[Yurtiçi Satışı Gerçekleşen Nominal Tutar (TL)]] -> 321,000.00
A19: 17 | B19: AKTİF YATIRIM BANKASI A.Ş. | C19: Banka | D19: Borçlanma Aracı | E19: 2018-12-25 | G19: 2019-01-17 | H19: HALKA ARZ VE/VEYA NİTELİKLİ | I19: 600,000,000.00 | J19: =Table5402945[[#This Row],[Yurtiçi İhraç Limiti Nominal Tutar (TL)]]/5.4724 -> 109,641,108.11 | K19: 600,000,000.00 | L19: =Table5402945[[#This Row],[Yurtiçi İhraç Limiti Nominal Tutar (TL)]]-Table5402945[[#This Row],[Yurtiçi Satışı Gerçekleşen Nominal Tutar (TL)]] -> 0.00
A20: 18 | B20: ICBC TURKEY BANK A.Ş. | C20: Banka | D20: Borçlanma Aracı | E20: 2018-12-26 | G20: 2019-01-10 | H20: NİTELİKLİ | I20: 350,000,000.00 | J20: =Table5402945[[#This Row],[Yurtiçi İhraç Limiti Nominal Tutar (TL)]]/5.4724 -> 63,957,313.06 | K20: 0.00 | L20: =Table5402945[[#This Row],[Yurtiçi İhraç Limiti Nominal Tutar (TL)]]-Table5402945[[#This Row],[Yurtiçi Satışı Gerçekleşen Nominal Tutar (TL)]] -> 350,000,000.00
A21: 19 | B21: ZORLU FAKTORİNG A.Ş. | C21: Finansal Kurum | D21: Borçlanma Aracı | E21: 2018-12-26 | G21: 2019-01-17 | H21: NİTELİKLİ | I21: 80,000,000.00 | J21: =Table5402945[[#This Row],[Yurtiçi İhraç Limiti Nominal Tutar (TL)]]/5.4724 -> 14,618,814.41 | K21: 80,000,000.00 | L21: =Table5402945[[#This Row],[Yurtiçi İhraç Limiti Nominal Tutar (TL)]]-Table5402945[[#This Row],[Yurtiçi Satışı Gerçekleşen Nominal Tutar (TL)]] -> 0.00
A22: 20 | B22: VERA VARLIK YÖNETİM A.Ş. | C22: Finansal Kurum | D22: Borçlanma Aracı | E22: 2018-12-26 | F22: 2019-01-31 | G22: -
A23: 21 | B23: TÜRKİYE İŞ BANKASI A.Ş. | C23: Banka | D23: Borçlanma Aracı | E23: 2018-12-31 | G23: 2019-01-24 | H23: YURTDIŞI | M23: 5,000,000,000.00 | N23: ABD Doları | O23: 53,000,000.00 | P23: =Table5402945[[#This Row],[YURTDIŞI İhraç Limiti Nominal Tutar]]-Table5402945[[#This Row],[YURTDIŞI Satışı Gerçekleşen Nominal Tutar]] -> 4,947,000,000.00 | Q23: =Table5402945[[#This Row],[YURTDIŞI Satışı Gerçekleşen Nominal Tutar]]*5.9507 -> 315,387,100.00
A24: 22 | B24: ZORLU ENERJİ ELEKTRİK A.Ş. | C24: Reel Sektör | D24: Borçlanma Aracı | E24: 2018-12-31 | G24: 2019-02-14 | H24: NİTELİKLİ | I24: 400,000,000.00 | J24: =Table5402945[[#This Row],[Yurtiçi İhraç Limiti Nominal Tutar (TL)]]/5.2692 -> 75,912,852.05 | K24: 399,550,000.00 | L24: =Table5402945[[#This Row],[Yurtiçi İhraç Limiti Nominal Tutar (TL)]]-Table5402945[[#This Row],[Yurtiçi Satışı Gerçekleşen Nominal Tutar (TL)]] -> 450,000.00
A25: 23 | B25: ODEA BANK A.Ş. | C25: Banka | D25: Borçlanma Aracı | E25: 2019-01-04 | G25: 2019-01-31 | H25: NİTELİKLİ / TAHSİSLİ | I25: 3,900,000,000.00 | J25: =Table5402945[[#This Row],[Yurtiçi İhraç Limiti Nominal Tutar (TL)]]/5.2203 -> 747,083,500.95 | K25: 3,443,270,000.00 | L25: =Table5402945[[#This Row],[Yurtiçi İhraç Limiti Nominal Tutar (TL)]]-Table5402945[[#This Row],[Yurtiçi Satışı Gerçekleşen Nominal Tutar (TL)]] -> 456,730,000.00
A26: 24 | B26: TÜRK TELEKOMÜNİKASYON A.Ş. | C26: Reel Sektör | D26: Borçlanma Aracı | E26: 2019-01-07 | G26: 2019-02-07 | H26: YURTDIŞI | M26: 500,000,000.00 | N26: ABD Doları | O26: 500,000,000.00 | P26: =Table5402945[[#This Row],[YURTDIŞI İhraç Limiti Nominal Tutar]]-Table5402945[[#This Row],[YURTDIŞI Satışı Gerçekleşen Nominal Tutar]] -> 0.00 | Q26: =Table5402945[[#This Row],[YURTDIŞI Satışı Gerçekleşen Nominal Tutar]]*5.9507 -> 2,975,350,000.00
A27: 25 | B27: EREĞLİ TEKSTİL TURİZM SANAYİ VE TİCARET A.Ş. | C27: Reel Sektör | D27: Borçlanma Aracı | E27: 2019-01-07 | G27: 2019-01-31 | H27: NİTELİKLİ | I27: 400,000,000.00 | J27: =Table5402945[[#This Row],[Yurtiçi İhraç Limiti Nominal Tutar (TL)]]/5.2203 -> 76,623,948.82 | K27: 387,900,000.00 | L27: =Table5402945[[#This Row],[Yurtiçi İhraç Limiti Nominal Tutar (TL)]]-Table5402945[[#This Row],[Yurtiçi Satışı Gerçekleşen Nominal Tutar (TL)]] -> 12,100,000.00
A28: 26 | B28: T.C. ZİRAAT BANKASI A.Ş. | C28: Banka | D28: Borçlanma Aracı | E28: 2019-01-11 | G28: 2019-01-24 | H28: NİTELİKLİ / TAHSİSLİ | I28: 12,500,000,000.00 | J28: =Table5402945[[#This Row],[Yurtiçi İhraç Limiti Nominal Tutar (TL)]]/5.2835 -> 2,365,855,966.69 | K28: 5,360,640,000.00 | L28: =Table5402945[[#This Row],[Yurtiçi İhraç Limiti Nominal Tutar (TL)]]-Table5402945[[#This Row],[Yurtiçi Satışı Gerçekleşen Nominal Tutar (TL)]] -> 7,139,360,000.00
A29: 27 | B29: T.C. ZİRAAT BANKASI A.Ş. | C29: Banka | D29: Borçlanma Aracı | E29: 2019-01-11 | G29: 2019-01-24 | H29: NİTELİKLİ / TAHSİSLİ | I29: 2,500,000,000.00 | J29: =Table5402945[[#This Row],[Yurtiçi İhraç Limiti Nominal Tutar (TL)]]/5.2835 -> 473,171,193.34 | K29: 0.00 | L29: =Table5402945[[#This Row],[Yurtiçi İhraç Limiti Nominal Tutar (TL)]]-Table5402945[[#This Row],[Yurtiçi Satışı Gerçekleşen Nominal Tutar (TL)]] -> 2,500,000,000.00
A30: 28 | B30: T.C. ZİRAAT BANKASI A.Ş. | C30: Banka | D30: Borçlanma Aracı | E30: 2019-01-11 | G30: 2019-01-24 | H30: NİTELİKLİ / TAHSİSLİ | I30: 2,500,000,000.00 | J30: =Table5402945[[#This Row],[Yurtiçi İhraç Limiti Nominal Tutar (TL)]]/5.2835 -> 473,171,193.34 | K30: 0.00 | L30: =Table5402945[[#This Row],[Yurtiçi İhraç Limiti Nominal Tutar (TL)]]-Table5402945[[#This Row],[Yurtiçi Satışı Gerçekleşen Nominal Tutar (TL)]] -> 2,500,000,000.00
A31: 29 | B31: T.C. ZİRAAT BANKASI A.Ş. | C31: Banka | D31: Borçlanma Aracı | E31: 2019-01-11 | G31: 2019-01-31 | H31: YURTDIŞI | M31: 4,000,000,000.00 | N31: ABD Doları | O31: 91,610,000.00 | P31: =Table5402945[[#This Row],[YURTDIŞI İhraç Limiti Nominal Tutar]]-Table5402945[[#This Row],[YURTDIŞI Satışı Gerçekleşen Nominal Tutar]] -> 3,908,390,000.00 | Q31: =Table5402945[[#This Row],[YURTDIŞI Satışı Gerçekleşen Nominal Tutar]]*5.9507 -> 545,143,627.00
A32: 30 | B32: AKBANK T.A.Ş. | C32: Banka | D32: Borçlanma Aracı | E32: 2019-01-14 | G32: 2019-02-14 | H32: NİTELİKLİ | I32: 7,500,000,000.00 | J32: =Table5402945[[#This Row],[Yurtiçi İhraç Limiti Nominal Tutar (TL)]]/5.2692 -> 1,423,365,975.86 | K32: 111,141,000.00 | L32: =Table5402945[[#This Row],[Yurtiçi İhraç Limiti Nominal Tutar (TL)]]-Table5402945[[#This Row],[Yurtiçi Satışı Gerçekleşen Nominal Tutar (TL)]] -> 7,388,859,000.00
A33: 31 | B33: RÖNESANS HOLDİNG A.Ş. | C33: Reel Sektör | D33: Borçlanma Aracı | E33: 2019-01-15 | G33: 2019-02-21 | H33: NİTELİKLİ | I33: 1,500,000,000.00 | J33: =Table5402945[[#This Row],[Yurtiçi İhraç Limiti Nominal Tutar (TL)]]/5.3236 -> 281,764,219.70 | K33: 0.00 | L33: =Table5402945[[#This Row],[Yurtiçi İhraç Limiti Nominal Tutar (TL)]]-Table5402945[[#This Row],[Yurtiçi Satışı Gerçekleşen Nominal Tutar (TL)]] -> 1,500,000,000.00
A34: 32 | B34: GÜRİŞ HOLDİNG A.Ş. | C34: Reel Sektör | D34: Borçlanma Aracı | E34: 2019-01-17 | G34: 2019-01-31 | H34: NİTELİKLİ | I34: 500,000,000.00 | J34: =Table5402945[[#This Row],[Yurtiçi İhraç Limiti Nominal Tutar (TL)]]/5.2203 -> 95,779,936.02 | K34: 0.00 | L34: =Table5402945[[#This Row],[Yurtiçi İhraç Limiti Nominal Tutar (TL)]]-Table5402945[[#This Row],[Yurtiçi Satışı Gerçekleşen Nominal Tutar (TL)]] -> 500,000,000.00
A35: 33 | B35: İŞ YATIRIM MENKUL DEĞERLER A.Ş. | C35: Finansal Kurum | D35: Borçlanma Aracı | E35: 2019-01-18 | G35: 2019-01-31 | H35: NİTELİKLİ / TAHSİSLİ | I35: 2,000,000,000.00 | J35: =Table5402945[[#This Row],[Yurtiçi İhraç Limiti Nominal Tutar (TL)]]/5.2203 -> 383,119,744.08 | K35: 1,986,471,584.00 | L35: =Table5402945[[#This Row],[Yurtiçi İhraç Limiti Nominal Tutar (TL)]]-Table5402945[[#This Row],[Yurtiçi Satışı Gerçekleşen Nominal Tutar (TL)]] -> 13,528,416.00
A36: 34 | B36: PALMET ENERJİ A.Ş. | C36: Reel Sektör | D36: Borçlanma Aracı | E36: 2019-01-18 | G36: 2019-03-14 | H36: NİTELİKLİ | I36: 150,000,000.00 | J36: =Table5402945[[#This Row],[Yurtiçi İhraç Limiti Nominal Tutar (TL)]]/5.4716 -> 27,414,284.67 | K36: 0.00 | L36: =Table5402945[[#This Row],[Yurtiçi İhraç Limiti Nominal Tutar (TL)]]-Table5402945[[#This Row],[Yurtiçi Satışı Gerçekleşen Nominal Tutar (TL)]] -> 150,000,000.00
A37: 35 | B37: VAKIF FAKTORİNG A.Ş. | C37: Finansal Kurum | D37: Borçlanma Aracı | E37: 2019-01-21 | G37: 2019-01-31 | H37: NİTELİKLİ | I37: 310,183,000.00 | J37: =Table5402945[[#This Row],[Yurtiçi İhraç Limiti Nominal Tutar (TL)]]/5.2203 -> 59,418,615.79 | K37: 310,183,000.00 | L37: =Table5402945[[#This Row],[Yurtiçi İhraç Limiti Nominal Tutar (TL)]]-Table5402945[[#This Row],[Yurtiçi Satışı Gerçekleşen Nominal Tutar (TL)]] -> 0.00
A38: 36 | B38: TÜRKİYE GARANTİ BANKASI A.Ş. | C38: Banka | D38: Borçlanma Aracı | E38: 2019-01-22 | G38: 2019-02-07 | H38: YURTDIŞI | M38: 6,000,000,000.00 | N38: ABD Doları | O38: 0.00 | P38: =Table5402945[[#This Row],[YURTDIŞI İhraç Limiti Nominal Tutar]]-Table5402945[[#This Row],[YURTDIŞI Satışı Gerçekleşen Nominal Tutar]] -> 6,000,000,000.00 | Q38: =Table5402945[[#This Row],[YURTDIŞI Satışı Gerçekleşen Nominal Tutar]]*5.9507 -> 0.00
A39: 37 | B39: INVEST-AZ YATIRIM MENKUL DEĞERLER A.Ş. | C39: Finansal Kurum | D39: Borçlanma Aracı | E39: 2019-01-24 | F39: 2019-02-21 | G39: -
A40: 38 | B40: HALK FİNANSAL KİRALAMA A.Ş. | C40: Finansal Kurum | D40: Borçlanma Aracı | E40: 2019-01-29 | G40: 2019-02-07 | H40: NİTELİKLİ | I40: 941,029,000.00 | J40: =Table5402945[[#This Row],[Yurtiçi İhraç Limiti Nominal Tutar (TL)]]/5.2502 -> 179,236,790.98 | K40: 941,000,000.00 | L40: =Table5402945[[#This Row],[Yurtiçi İhraç Limiti Nominal Tutar (TL)]]-Table5402945[[#This Row],[Yurtiçi Satışı Gerçekleşen Nominal Tutar (TL)]] -> 29,000.00
A41: 39 | B41: İŞ FAKTORİNG A.Ş. (***) | C41: Finansal Kurum | D41: Borçlanma Aracı | E41: 2019-01-29 | G41: 2019-02-14 | H41: NİTELİKLİ / TAHSİSLİ | I41: 596,000,000.00 | J41: =Table5402945[[#This Row],[Yurtiçi İhraç Limiti Nominal Tutar (TL)]]/5.2692 -> 113,110,149.55 | K41: 497,800,000.00 | L41: =Table5402945[[#This Row],[Yurtiçi İhraç Limiti Nominal Tutar (TL)]]-Table5402945[[#This Row],[Yurtiçi Satışı Gerçekleşen Nominal Tutar (TL)]] -> 98,200,000.00
A42: 40 | B42: YEDİTEPE FAKTORİNG A.Ş. | C42: Finansal Kurum | D42: Borçlanma Aracı | E42: 2019-01-29 | G42: 2019-02-21 | H42: NİTELİKLİ | I42: 120,000,000.00 | J42: =Table5402945[[#This Row],[Yurtiçi İhraç Limiti Nominal Tutar (TL)]]/5.3236 -> 22,541,137.58 | K42: 25,250,000.00 | L42: =Table5402945[[#This Row],[Yurtiçi İhraç Limiti Nominal Tutar (TL)]]-Table5402945[[#This Row],[Yurtiçi Satışı Gerçekleşen Nominal Tutar (TL)]] -> 94,750,000.00
A43: 41 | B43: KOÇ HOLDİNG A.Ş. | C43: Reel Sektör | D43: Borçlanma Aracı | E43: 2019-01-29 | G43: 2019-02-14 | H43: YURTDIŞI | M43: 1,000,000,000.00 | N43: ABD Doları | O43: 750,000,000.00 | P43: =Table5402945[[#This Row],[YURTDIŞI İhraç Limiti Nominal Tutar]]-Table5402945[[#This Row],[YURTDIŞI Satışı Gerçekleşen Nominal Tutar]] -> 250,000,000.00 | Q43: =Table5402945[[#This Row],[YURTDIŞI Satışı Gerçekleşen Nominal Tutar]]*5.9507 -> 4,463,025,000.00
A44: 42 | B44: NUROL YATIRIM BANKASI A.Ş. (***) | C44: Banka | D44: Borçlanma Aracı | E44: 2019-01-30 | G44: 2019-02-14 | H44: NİTELİKLİ / TAHSİSLİ | I44: 600,000,000.00 | J44: =Table5402945[[#This Row],[Yurtiçi İhraç Limiti Nominal Tutar (TL)]]/5.2692 -> 113,869,278.07 | K44: 580,000,000.00 | L44: =Table5402945[[#This Row],[Yurtiçi İhraç Limiti Nominal Tutar (TL)]]-Table5402945[[#This Row],[Yurtiçi Satışı Gerçekleşen Nominal Tutar (TL)]] -> 20,000,000.00
A45: 43 | B45: ULUSAL FAKTORİNG A.Ş. | C45: Finansal Kurum | D45: Borçlanma Aracı | E45: 2019-02-01 | G45: 2019-03-07 | H45: NİTELİKLİ | I45: 150,000,000.00 | J45: =Table5402945[[#This Row],[Yurtiçi İhraç Limiti Nominal Tutar (TL)]]/5.4407 -> 27,569,981.80 | K45: 26,500,000.00 | L45: =Table5402945[[#This Row],[Yurtiçi İhraç Limiti Nominal Tutar (TL)]]-Table5402945[[#This Row],[Yurtiçi Satışı Gerçekleşen Nominal Tutar (TL)]] -> 123,500,000.00
A46: 44 | B46: ODAŞ ELEKTRİK ÜRETİM SANAYİİ TİCARET A.Ş. | C46: Reel Sektör | D46: Borçlanma Aracı | E46: 06.02.2019 19.02.2019 | F46: 2019-02-21 | G46: -
A47: 45 | B47: VAKIF YATIRIM MENKUL DEĞERLER A.Ş. | C47: Finansal Kurum | D47: Borçlanma Aracı | E47: 07.02.2019 08.03.2019 | G47: 2019-03-28 | H47: NİTELİKLİ / TAHSİSLİ | I47: 500,000,000.00 | J47: =Table5402945[[#This Row],[Yurtiçi İhraç Limiti Nominal Tutar (TL)]]/5.5523 -> 90,052,770.92 | K47: 0.00 | L47: =Table5402945[[#This Row],[Yurtiçi İhraç Limiti Nominal Tutar (TL)]]-Table5402945[[#This Row],[Yurtiçi Satışı Gerçekleşen Nominal Tutar (TL)]] -> 500,000,000.00
A48: 46 | B48: İŞ YATIRIM MENKUL DEĞERLER A.Ş. | C48: Finansal Kurum | D48: Borçlanma Aracı | E48: 2019-02-14 | G48: 28.02.2019, | H48: NİTELİKLİ/ TAHSİSLİ | I48: 1,900,000,000.00 | J48: 356,653,464.23 | K48: 1,891,067,000.00 | L48: 8,933,000.00 | P48: 0.00
A49: 47 | B49: SADAL TARIM MAKİNALARI DIŞ TİCARET A.Ş. | C49: Reel Sektör | D49: Borçlanma Aracı | E49: 2019-02-14 | F49: 2019-06-20 | G49: 2019-06-20 | J49: 0.00 | L49: 0.00 | P49: 0.00
A50: 48 | B50: SÜMER VARLIK YÖNETİMİ A.Ş. | C50: Finansal Kurum | D50: Borçlanma Aracı | E50: 2019-02-21 | G50: 2019-03-21 | H50: NİTELİKLİ | I50: 75,000,000.00 | J50: 13,507,915.64 | K50: 75,000,000.00 | L50: 0.00 | P50: 0.00
A51: 49 | B51: ALTERNATİFBANK A.Ş. | C51: Banka | D51: Borçlanma Aracı | E51: 2019-02-21 | G51: 2019-03-14 | H51: NİTELİKLİ | I51: 1,100,000,000.00 | J51: 201,038,087.58 | K51: 1,098,599,731.00 | L51: 1,400,269.00 | P51: 0.00
A52: 50 | B52: BURGAN BANK A.Ş. | C52: Banka | D52: Borçlanma Aracı | E52: 2019-02-22 | F52: 2019-03-22 | G52: 00:00:00 | L52: 0.00 | P52: 0.00
A53: 51 | B53: HALK YATIRIM MENKUL DEĞERLER A.Ş. | C53: Finansal Kurum | D53: Borçlanma Aracı | E53: 2019-02-22 | G53: 2019-03-14 | H53: NİTELİKLİ | I53: 372,000,000.00 | J53: 67,987,425.98 | K53: 372,000,000.00 | L53: 0.00 | P53: 0.00
A54: 52 | B54: AKBANK T.A.Ş. | C54: Banka | D54: Borçlanma Aracı | E54: 2019-02-22 | G54: 2019-04-25 | J54: 0.00 | L54: 0.00 | P54: 0.00
A55: 53 | B55: YAPI KREDİ YATIRIM MENKUL DEĞERLER A.Ş. | C55: Finansal Kurum | D55: Borçlanma Aracı | E55: 2019-02-25 | G55: 2019-03-07 | H55: NİTELİKLİ | I55: 1,096,000,000.00 | J55: 201,444,667.05 | K55: 1,084,380,000.00 | L55: 11,620,000.00 | P55: 0.00
A56: 54 | B56: ŞEKER FAKTORİNG A.Ş. | C56: Finansal Kurum | D56: Borçlanma Aracı | E56: 2019-02-25 | G56: 2019-03-14 | H56: HALKA ARZ/ NİTELİKLİ/ TAHSİSLİ | I56: 233,879,500.00 | J56: 42,744,261.28 | K56: 233,879,500.00 | L56: 0.00 | P56: 0.00
A57: 55 | B57: AK YATIRIM MENKUL DEĞERLER A.Ş. | C57: Finansal Kurum | D57: Borçlanma Aracı | E57: 2019-02-26 | G57: 2019-03-21 | H57: NİTELİKLİ | I57: 100,000,000.00 | J57: 18,351,991.19 | K57: 98,578,000.00 | L57: 1,422,000.00 | P57: 0.00
A58: 56 | B58: AK YATIRIM MENKUL DEĞERLER A.Ş. | C58: Finansal Kurum | D58: Borçlanma Aracı | E58: 2019-02-26 | G58: 2019-03-21 | I58: 900,000,000.00 | J58: 165,167,920.72 | K58: 900,000,000.00 | L58: 0.00 | P58: 0.00
A59: 57 | B59: KORTEKS MENSUCAT SANAYİ VE TİCARET A.Ş. | C59: Reel Sektör | D59: Borçlanma Aracı | E59: 2019-02-26 | G59: 2019-03-14 | I59: 400,000,000.00 | J59: 73,104,759.12 | K59: 400,000,000.00 | L59: 0.00 | P59: 0.00
A60: 58 | B60: TURKCELL İLETİŞİM HİZMETLERİ A.Ş. | C60: Reel Sektör | D60: Borçlanma Aracı | E60: 2019-02-28 | G60: 2019-03-07 | H60: YURTDIŞI | J60: 0.00 | M60: 750,000,000.00 | N60: USD | O60: 0.00 | P60: 750,000,000.00
A61: 59 | B61: AKDENİZ FAKTORİNG A.Ş. | C61: Finansal Kurum | D61: Borçlanma Aracı | E61: 2019-03-04 | G61: 2019-03-21 | H61: NİTELİKLİ | I61: 130,000,000.00 | J61: 23,857,588.55 | K61: 130,000,000.00 | P61: 0.00
A62: 60 | B62: QNB FİNANS FAKTORİNG A.Ş. | C62: Finansal Kurum | D62: Borçlanma Aracı | E62: 2019-03-05 | G62: 2019-03-21 | H62: NİTELİKLİ/ TAHSİSLİ | I62: 370,300,900.00 | J62: 67,957,588.55 | K62: 370,300,900.00 | L62: 0.00 | P62: 0.00
A63: 61 | B63: QNB FİNANS YATIRIM MENKUL DEĞERLER A.Ş. | C63: Finansal Kurum | D63: Borçlanma Aracı | E63: 2019-03-08 | G63: 2019-03-28 | H63: NİTELİKLİ | I63: 425,000,000.00 | J63: 76,544,855.29 | K63: 420,591,500.00 | L63: 4,408,500.00 | P63: 0.00
A64: 62 | B64: NUROL HOLDİNG A.Ş. | C64: Reel Sektör | D64: Borçlanma Aracı | E64: 2019-03-08 | G64: 2019-03-21 | H64: NİTELİKLİ | I64: 500,000,000.00 | J64: 91,759,955.96 | K64: 500,000,000.00 | L64: 0.00 | P64: 0.00
A65: 63 | B65: OYAK YATIRIM MENKUL DEĞERLER A.Ş. | C65: Finansal Kurum | D65: Borçlanma Aracı | E65: 2019-03-12 | G65: 2019-03-28 | H65: NİTELİKLİ | I65: 290,000,000.00 | J65: 52,230,607.14 | K65: 290,000,000.00 | L65: 0.00 | P65: 0.00
A66: 64 | B66: ORFİN FİNANSMAN A.Ş. | C66: Finansal Kurum | D66: Borçlanma Aracı | E66: 2019-03-13 | G66: 2019-04-11 | H66: NİTELİKLİ | I66: 400,000,000.00 | J66: 69,911,736.43 | K66: 0.00 | L66: 400,000,000.00 | P66: 0.00
A67: 65 | B67: DENİZ FİNANSAL KİRALAMA A.Ş. | C67: Finansal Kurum | D67: Borçlanma Aracı | E67: 2019-03-14 | G67: 2019-03-28 | H67: NİTELİKLİ | I67: 1,512,769,000.00 | J67: 272,458,080.44 | K67: 1,426,000,000.00 | L67: 86,769,000.00 | P67: 0.00
A68: 66 | B68: ALTERNATİF MENKUL DEĞERLER A.Ş. | C68: Finansal Kurum | D68: Borçlanma Aracı | E68: 2019-03-14 | G68: 2019-04-18 | H68: NİTELİKLİ | I68: 94,750,000.00 | J68: 16,280,348.46 | K68: 0.00 | L68: 94,750,000.00 | P68: 0.00
A69: 67 | B69: YAPI VE KREDİ BANKASI A.Ş. | C69: Banka | D69: Borçlanma Aracı | E69: 2019-03-18 | G69: 2019-04-04 | H69: YURTDIŞI | J69: 0.00 | L69: 0.00 | M69: 7,000,000,000.00 | N69: USD | O69: 0.00 | P69: 0.00
A70: 68 | B70: EREĞLİ DEMİR VE ÇELİK FABRİKALARI A.Ş. | C70: Reel Sektör | D70: Borçlanma Aracı | E70: 2019-03-18 | G70: 2019-05-02 | H70: NİTELİKLİ | I70: 1,500,000,000.00 | J70: 251,344,694.11 | K70: 550,000,000.00 | L70: 950,000,000.00 | P70: 0.00
A71: 69 | B71: GELECEK VARLIK YÖNETİMİ A.Ş. | C71: Finansal Kurum | D71: Borçlanma Aracı | E71: 2019-03-20 | G71: 2019-04-18 | H71: NİTELİKLİ | I71: 380,000,000.00 | J71: 65,293,218.10 | K71: 40,000,000.00 | L71: 340,000,000.00 | P71: 0.00
A72: 70 | B72: ŞEKER FİNANSAL KİRALAMA A.Ş. | C72: Finansal Kurum | D72: Borçlanma Aracı | E72: 2019-03-20 | G72: 2019-04-25 | H72: HALKA ARZ/ NİTELİKLİ/ TAHSİSLİ | I72: 260,000,000.00 | J72: 44,043,162.30 | K72: 260,000,000.00 | L72: 0.00 | P72: 0.00
A73: 71 | B73: AK FAKTORİNG A.Ş. | C73: Finansal Kurum | D73: Borçlanma Aracı | E73: 2019-03-22 | G73: 2019-05-02 | H73: NİTELİKLİ/TAHSİSLİ | I73: 76,500,000.00 | J73: 12,818,579.40 | K73: 12,600,000.00 | L73: 63,900,000.00 | P73: 0.00
A74: 72 | B74: CREDİTWEST FAKTORİNG A.Ş. | C74: Finansal Kurum | D74: Borçlanma Aracı | E74: 2019-03-25 | G74: 2019-04-18 | H74: NİTELİKLİ | I74: 200,000,000.00 | J74: 34,364,851.63 | K74: 95,000,000.00 | L74: 105,000,000.00 | P74: 0.00
A75: 73 | B75: AKTİF YATIRIM BANKASI A.Ş. | C75: Banka | D75: Borçlanma Aracı | E75: 2019-03-26 | G75: 2019-04-25 | H75: HALKA ARZ,NİTELİKLİ | I75: 1,150,000,000.00 | J75: 194,806,294.78 | K75: 1,150,000,000.00 | L75: 0.00 | P75: 0.00
A76: 74 | B76: DOĞUŞ HOLDİNG A.Ş. | C76: Reel Sektör | D76: Borçlanma Aracı | E76: 2019-03-28 | G76: 2019-04-25 | H76: NİTELİKLİ/ TAHSİSLİ | I76: 500,000,000.00 | J76: 84,698,389.04 | K76: 0.00 | L76: 500,000,000.00 | P76: 0.00
A77: 75 | B77: YATIRIM FİNANSMAN MENKUL DEĞERLER A.Ş. | C77: Finansal Kurum | D77: Borçlanma Aracı | E77: 2019-03-28 | G77: 2019-04-18 | H77: NİTELİKLİ | I77: 300,000,000.00 | J77: 51,547,277.44 | K77: 300,000,000.00 | L77: 0.00 | P77: 0.00
A78: 76 | B78: FİBA FAKTORİNG A.Ş. | C78: Finansal Kurum | D78: Borçlanma Aracı | E78: 2019-03-29 | G78: 2019-04-18 | H78: NİTELİKLİ | I78: 250,000,000.00 | J78: 42,956,064.54 | K78: 0.00 | L78: 250,000,000.00 | P78: 0.00
A79: 77 | B79: SÜMER FAKTORİNG A.Ş. | C79: Finansal Kurum | D79: Borçlanma Aracı | E79: 2019-04-03 | G79: 2019-05-16 | H79: NİTELİKLİ | I79: 70,000,000.00 | J79: 11,645,898.15 | K79: 58,010,200.00 | L79: 11,989,800.00 | P79: 0.00
A80: 78 | B80: AKBANK T.A.Ş. | C80: Banka | D80: Borçlanma Aracı | E80: 2019-04-03 | G80: 2019-04-25 | H80: NİTELİKLİ/TAHSİSLİ | I80: 20,000,000,000.00 | J80: 3,387,935,561.47 | K80: 19,785,694,000.00 | L80: 214,306,000.00 | P80: 0.00
A81: 79 | B81: TÜRK EKONOMİ BANKASI A.Ş. | C81: Banka | D81: Borçlanma Aracı | E81: 2019-04-03 | G81: 2019-05-02 | H81: YURTDIŞI | J81: 0.00 | L81: 0.00 | M81: 60,000,000.00 | N81: Euro | O81: 60,000,000.00 | P81: 0.00
A82: 80 | B82: GARANTİ FİLO YÖNETİM HİZMETLERİ A.Ş. | C82: Finansal Kurum | D82: Borçlanma Aracı | E82: 04.04.2019 15.05.2019 | F82: 2019-05-16 | G82: 2019-05-16 | J82: 0.00 | L82: 0.00 | P82: 0.00
A83: 81 | B83: HAYAT VARLIK YÖNETİMİ A.Ş. | C83: Finansal Kurum | D83: Borçlanma Aracı | E83: 2019-04-04 | G83: 2019-05-02 | H83: TAHSİSLİ | I83: 200,000,000.00 | J83: 33,512,625.88 | K83: 0.00 | L83: 200,000,000.00 | P83: 0.00
A84: 82 | B84: LİDER FAKTORİNG A.Ş. | C84: Finansal Kurum | D84: Borçlanma Aracı | E84: 2019-04-04 | G84: 2019-05-02 | H84: HALKA ARZ/ NİTELİKLİ/ TAHSİSLİ | I84: 100,000,000.00 | J84: 16,756,312.94 | K84: 96,600,000.00 | L84: 3,400,000.00 | P84: 0.00
A85: 83 | B85: İSTANBUL FAKTORİNG A.Ş. | C85: Finansal Kurum | D85: Borçlanma Aracı | E85: 2019-04-05 | G85: 2019-05-02 | H85: TAHSİSLİ | I85: 10,000,000.00 | J85: 1,675,631.29 | K85: 10,000,000.00 | L85: 0.00 | P85: 0.00
A86: 84 | B86: İŞ YATIRIM MENKUL DEĞERLER A.Ş. | C86: Finansal Kurum | D86: Borçlanma Aracı | E86: 2019-04-11 | G86: 2019-05-02 | H86: NİTELİKLİ/TAHSİSLİ | I86: 2,500,000,000.00 | J86: 418,907,823.52 | K86: 2,481,805,000.00 | L86: 18,195,000.00 | P86: 0.00
A87: 85 | B87: TURKISH BANK A.Ş. | C87: Banka | D87: Borçlanma Aracı | E87: 2019-04-12 | G87: 2019-05-16 | H87: NİTELİKLİ | I87: 170,000,000.00 | J87: 28,282,895.50 | K87: 96,500,000.00 | L87: 73,500,000.00 | P87: 0.00
A88: 86 | B88: OYKA KAĞIT AMBALAJ SANAYİİ VE TİCARET A.Ş. | C88: Reel Sektör | D88: Borçlanma Aracı | E88: 2019-04-12 | G88: 2019-05-16 | H88: NİTELİKLİ | I88: 500,000,000.00 | J88: 83,184,986.77 | K88: 0.00 | L88: 500,000,000.00 | P88: 0.00
A89: 87 | B89: BURGAN BANK A.Ş. | C89: Banka | D89: Borçlanma Aracı | E89: 2019-04-19 | G89: 2019-04-25 | H89: NİTELİKLİ/TAHSİSLİ | I89: 3,000,000,000.00 | J89: 508,190,334.22 | K89: 0.00 | L89: 3,000,000,000.00 | P89: 0.00
A90: 88 | B90: TAT GIDA SANAYİ A.Ş. | C90: Reel Sektör | D90: Borçlanma Aracı | E90: 2019-04-19 | G90: 2019-05-09 | H90: NİTELİKLİ/TAHSİSLİ | I90: 150,000,000.00 | J90: 24,139,817.82 | K90: 70,000,000.00 | L90: 80,000,000.00 | P90: 0.00
A91: 89 | B91: AK FİNANSAL KİRALAMA A.Ş. | C91: Finansal Kurum | D91: Borçlanma Aracı | E91: 2019-04-22 | G91: 2019-05-09 | H91: NİTELİKLİ / TAHSİSLİ | I91: 1,350,000,000.00 | J91: =Table5402945[[#This Row],[Yurtiçi İhraç Limiti Nominal Tutar (TL)]]/6.2138 -> 217,258,360.42 | K91: 307,000,000.00 | L91: =Table5402945[[#This Row],[Yurtiçi İhraç Limiti Nominal Tutar (TL)]]-Table5402945[[#This Row],[Yurtiçi Satışı Gerçekleşen Nominal Tutar (TL)]] -> 1,043,000,000.00
A92: 90 | B92: QNB FİNANSBANK A.Ş. | C92: Banka | D92: Borçlanma Aracı | E92: 2019-04-22 | G92: 2019-05-16 | H92: YURTDIŞI | I92: 0.00 | J92: 0.00 | K92: 0.00 | L92: 0.00 | M92: 5,000,000,000.00 | N92: ABD Doları | O92: 275,000,000.00 | P92: =Table5402945[[#This Row],[YURTDIŞI İhraç Limiti Nominal Tutar]]-Table5402945[[#This Row],[YURTDIŞI Satışı Gerçekleşen Nominal Tutar]] -> 4,725,000,000.00 | Q92: 1,683,725,000.00
A93: 91 | B93: NUROL YATIRIM BANKASI A.Ş. | C93: Banka | D93: Borçlanma Aracı | E93: 2019-04-22 | G93: 2019-05-09 | H93: NİTELİKLİ / TAHSİSLİ | I93: 600,000,000.00 | J93: =Table5402945[[#This Row],[Yurtiçi İhraç Limiti Nominal Tutar (TL)]]/6.2138 -> 96,559,271.30 | K93: 600,000,000.00 | L93: =Table5402945[[#This Row],[Yurtiçi İhraç Limiti Nominal Tutar (TL)]]-Table5402945[[#This Row],[Yurtiçi Satışı Gerçekleşen Nominal Tutar (TL)]] -> 0.00
A94: 92 | B94: SGT SANAYİ VE TİCARİ ÜRÜNLER DIŞ TİCARET A.Ş. | C94: Reel Sektör | D94: Borçlanma Aracı | E94: 2019-04-24 | F94: 2019-05-13 | G94: - | L94: =Table5402945[[#This Row],[Yurtiçi İhraç Limiti Nominal Tutar (TL)]]-Table5402945[[#This Row],[Yurtiçi Satışı Gerçekleşen Nominal Tutar (TL)]] -> 0.00
A95: 93 | B95: TEB FİNANSMAN A.Ş. | C95: Finansal Kurum | D95: Borçlanma Aracı | E95: 2019-04-24 | G95: 2019-05-16 | H95: NİTELİKLİ / TAHSİSLİ | I95: 875,000,000.00 | J95: =Table5402945[[#This Row],[Yurtiçi İhraç Limiti Nominal Tutar (TL)]]/6.0107 -> 145,573,726.85 | K95: 53,100,000.00 | L95: =Table5402945[[#This Row],[Yurtiçi İhraç Limiti Nominal Tutar (TL)]]-Table5402945[[#This Row],[Yurtiçi Satışı Gerçekleşen Nominal Tutar (TL)]] -> 821,900,000.00
A96: 94 | B96: PHILLIP CAPITAL MENKUL DEĞERLER A.Ş. | C96: Finansal Kurum | D96: Borçlanma Aracı | E96: 2019-04-25 | G96: 2019-05-23 | H96: NİTELİKLİ / TAHSİSLİ | I96: 100,000,000.00 | J96: =Table5402945[[#This Row],[Yurtiçi İhraç Limiti Nominal Tutar (TL)]]/6.1362 -> 16,296,730.88 | K96: 24,561,000.00 | L96: =Table5402945[[#This Row],[Yurtiçi İhraç Limiti Nominal Tutar (TL)]]-Table5402945[[#This Row],[Yurtiçi Satışı Gerçekleşen Nominal Tutar (TL)]] -> 75,439,000.00
A97: 95 | B97: KENT FAKTORİNG A.Ş. | C97: Finansal Kurum | D97: Borçlanma Aracı | E97: 2019-04-29 | G97: 2019-05-16 | H97: NİTELİKLİ | I97: 50,000,000.00 | J97: =Table5402945[[#This Row],[Yurtiçi İhraç Limiti Nominal Tutar (TL)]]/6.0107 -> 8,318,498.68 | K97: 0.00 | L97: =Table5402945[[#This Row],[Yurtiçi İhraç Limiti Nominal Tutar (TL)]]-Table5402945[[#This Row],[Yurtiçi Satışı Gerçekleşen Nominal Tutar (TL)]] -> 50,000,000.00
A98: 96 | B98: ALTERNATİFBANK A.Ş. | C98: Banka | D98: Borçlanma Aracı | E98: 2019-04-30 | G98: 2019-05-23 | H98: NİTELİKLİ | I98: 2,000,000,000.00 | J98: =Table5402945[[#This Row],[Yurtiçi İhraç Limiti Nominal Tutar (TL)]]/6.1362 -> 325,934,617.52 | K98: 1,675,439,000.00 | L98: =Table5402945[[#This Row],[Yurtiçi İhraç Limiti Nominal Tutar (TL)]]-Table5402945[[#This Row],[Yurtiçi Satışı Gerçekleşen Nominal Tutar (TL)]] -> 324,561,000.00
A99: 97 | B99: GEDİK YATIRIM MENKUL DEĞERLER A.Ş. | C99: Finansal Kurum | D99: Borçlanma Aracı | E99: 2019-04-30 | G99: 2019-05-23 | H99: HALKA ARZ / NİTELİKLİ | I99: 300,000,000.00 | J99: =Table5402945[[#This Row],[Yurtiçi İhraç Limiti Nominal Tutar (TL)]]/6.1362 -> 48,890,192.63 | K99: 136,000,000.00 | L99: =Table5402945[[#This Row],[Yurtiçi İhraç Limiti Nominal Tutar (TL)]]-Table5402945[[#This Row],[Yurtiçi Satışı Gerçekleşen Nominal Tutar (TL)]] -> 164,000,000.00
A100: 98 | B100: LDR TURİZM A.Ş. | C100: Reel Sektör | D100: Borçlanma Aracı | E100: 2019-04-30 | G100: 2019-05-23 | H100: NİTELİKLİ | I100: 60,000,000.00 | J100: =Table5402945[[#This Row],[Yurtiçi İhraç Limiti Nominal Tutar (TL)]]/6.1362 -> 9,778,038.53 | K100: 0.00 | L100: =Table5402945[[#This Row],[Yurtiçi İhraç Limiti Nominal Tutar (TL)]]-Table5402945[[#This Row],[Yurtiçi Satışı Gerçekleşen Nominal Tutar (TL)]] -> 60,000,000.00
A101: 99 | B101: BİOFARMA İLAÇ SANAYİ VE TİCARET A.Ş. | C101: Reel Sektör | D101: Borçlanma Aracı | E101: 2.04.2019 16.05.2019 | F101: 2019-05-22 | K101: 0.00 | L101: =Table5402945[[#This Row],[Yurtiçi İhraç Limiti Nominal Tutar (TL)]]-Table5402945[[#This Row],[Yurtiçi Satışı Gerçekleşen Nominal Tutar (TL)]] -> 0.00
A102: 100 | B102: TÜRK EKONOMİ BANKASI A.Ş. | C102: Banka | D102: Borçlanma Aracı | E102: 2019-05-03 | G102: 2019-05-23 | H102: HALKA ARZ / NİTELİKLİ TAHSİSLİ | I102: 15,000,000,000.00 | J102: =Table5402945[[#This Row],[Yurtiçi İhraç Limiti Nominal Tutar (TL)]]/6.1362 -> 2,444,509,631.37 | K102: 8,549,169,462.00 | L102: =Table5402945[[#This Row],[Yurtiçi İhraç Limiti Nominal Tutar (TL)]]-Table5402945[[#This Row],[Yurtiçi Satışı Gerçekleşen Nominal Tutar (TL)]] -> 6,450,830,538.00
A103: 101 | B103: HAYAT VARLIK YÖNETİMİ A.Ş. | C103: Finansal Kurum | D103: Borçlanma Aracı | E103: 2019-05-03 | G103: 2019-05-23 | H103: NİTELİKLİ | I103: 200,000,000.00 | J103: =Table5402945[[#This Row],[Yurtiçi İhraç Limiti Nominal Tutar (TL)]]/6.1362 -> 32,593,461.75 | K103: 185,500,000.00 | L103: =Table5402945[[#This Row],[Yurtiçi İhraç Limiti Nominal Tutar (TL)]]-Table5402945[[#This Row],[Yurtiçi Satışı Gerçekleşen Nominal Tutar (TL)]] -> 14,500,000.00
A104: 102 | B104: INVEST-AZ YATIRIM MENKUL DEĞERLER A.Ş. | C104: Finansal Kurum | D104: Borçlanma Aracı | E104: 2019-05-07 | F104: 2019-06-20
A105: 103 | B105: GARANTİ FAKTORİNG A.Ş. | C105: Finansal Kurum | D105: Borçlanma Aracı | E105: 2019-05-07 | G105: 2019-05-23 | H105: NİTELİKLİ | I105: 590,000,000.00 | J105: =Table5402945[[#This Row],[Yurtiçi İhraç Limiti Nominal Tutar (TL)]]/6.1362 -> 96,150,712.17 | K105: 298,306,223.00 | L105: =Table5402945[[#This Row],[Yurtiçi İhraç Limiti Nominal Tutar (TL)]]-Table5402945[[#This Row],[Yurtiçi Satışı Gerçekleşen Nominal Tutar (TL)]] -> 291,693,777.00
A106: 104 | B106: DESTEK FAKTORİNG A.Ş. | C106: Finansal Kurum | D106: Borçlanma Aracı | E106: 2019-05-09 | G106: 2019-07-11 | H106: NİTELİKLİ | I106: 120,000,000.00 | J106: =Table5402945[[#This Row],[Yurtiçi İhraç Limiti Nominal Tutar (TL)]]/5.6767 -> 21,139,042.05 | K106: 88,000,000.00 | L106: =Table5402945[[#This Row],[Yurtiçi İhraç Limiti Nominal Tutar (TL)]]-Table5402945[[#This Row],[Yurtiçi Satışı Gerçekleşen Nominal Tutar (TL)]] -> 32,000,000.00
A107: 105 | B107: VAKIF FAKTORİNG A.Ş. | C107: Finansal Kurum | D107: Borçlanma Aracı | E107: 2019-05-14 | G107: 2019-05-23 | H107: NİTELİKLİ | I107: 413,000,000.00 | J107: =Table5402945[[#This Row],[Yurtiçi İhraç Limiti Nominal Tutar (TL)]]/6.1362 -> 67,305,498.52 | K107: 413,000,000.00 | L107: =Table5402945[[#This Row],[Yurtiçi İhraç Limiti Nominal Tutar (TL)]]-Table5402945[[#This Row],[Yurtiçi Satışı Gerçekleşen Nominal Tutar (TL)]] -> 0.00
A108: 106 | B108: EKO FAKTORİNG A.Ş. | C108: Finansal Kurum | D108: Borçlanma Aracı | E108: 2019-05-16 | G108: 2019-06-13 | H108: NİTELİKLİ | I108: 165,000,000.00 | J108: =Table5402945[[#This Row],[Yurtiçi İhraç Limiti Nominal Tutar (TL)]]/5.8369 -> 28,268,430.16 | K108: 94,734,300.00 | L108: =Table5402945[[#This Row],[Yurtiçi İhraç Limiti Nominal Tutar (TL)]]-Table5402945[[#This Row],[Yurtiçi Satışı Gerçekleşen Nominal Tutar (TL)]] -> 70,265,700.00
A109: 107 | B109: ZORLU FAKTORİNG A.Ş. | C109: Finansal Kurum | D109: Borçlanma Aracı | E109: 2019-05-17 | G109: 2019-06-13 | H109: NİTELİKLİ | I109: 179,800,000.00 | J109: =Table5402945[[#This Row],[Yurtiçi İhraç Limiti Nominal Tutar (TL)]]/5.8369 -> 30,804,022.68 | K109: 134,150,000.00 | L109: =Table5402945[[#This Row],[Yurtiçi İhraç Limiti Nominal Tutar (TL)]]-Table5402945[[#This Row],[Yurtiçi Satışı Gerçekleşen Nominal Tutar (TL)]] -> 45,650,000.00
A110: 108 | B110: HALK YATIRIM MENKUL DEĞERLER A.Ş. | C110: Finansal Kurum | D110: Borçlanma Aracı | E110: 2019-05-21 | G110: 2019-06-13 | H110: NİTELİKLİ | I110: 455,000,000.00 | J110: =Table5402945[[#This Row],[Yurtiçi İhraç Limiti Nominal Tutar (TL)]]/5.8369 -> 77,952,337.71 | K110: 50,000,000.00 | L110: =Table5402945[[#This Row],[Yurtiçi İhraç Limiti Nominal Tutar (TL)]]-Table5402945[[#This Row],[Yurtiçi Satışı Gerçekleşen Nominal Tutar (TL)]] -> 405,000,000.00
A111: 109 | B111: GLOBAL YATIRIM HOLDİNG A.Ş. | C111: Finansal Kurum | D111: Borçlanma Aracı | E111: 2019-05-21 | G111: 2019-06-27 | H111: NİTELİKLİ | I111: 250,000,000.00 | J111: =Table5402945[[#This Row],[Yurtiçi İhraç Limiti Nominal Tutar (TL)]]/5.7769 -> 43,275,805.36 | K111: 145,000,000.00 | L111: =Table5402945[[#This Row],[Yurtiçi İhraç Limiti Nominal Tutar (TL)]]-Table5402945[[#This Row],[Yurtiçi Satışı Gerçekleşen Nominal Tutar (TL)]] -> 105,000,000.00
A112: 110 | B112: QNB FİNANS FAKTORİNG A.Ş. | C112: Finansal Kurum | D112: Borçlanma Aracı | E112: 2019-05-22 | G112: 2019-06-20 | H112: NİTELİKLİ / TAHSİSLİ | I112: 266,100,000.00 | J112: =Table5402945[[#This Row],[Yurtiçi İhraç Limiti Nominal Tutar (TL)]]/5.7414 -> 46,347,580.73 | K112: 204,540,300.00 | L112: =Table5402945[[#This Row],[Yurtiçi İhraç Limiti Nominal Tutar (TL)]]-Table5402945[[#This Row],[Yurtiçi Satışı Gerçekleşen Nominal Tutar (TL)]] -> 61,559,700.00
A113: 111 | B113: ANADOLUBANK A.Ş. | C113: Banka | D113: Borçlanma Aracı | E113: 2019-05-22 | G113: 2019-07-25 | H113: NİTELİKLİ / TAHSİSLİ | I113: 600,000,000.00 | J113: =Table5402945[[#This Row],[Yurtiçi İhraç Limiti Nominal Tutar (TL)]]/5.7093 -> 105,091,692.50 | K113: 409,000,000.00 | L113: =Table5402945[[#This Row],[Yurtiçi İhraç Limiti Nominal Tutar (TL)]]-Table5402945[[#This Row],[Yurtiçi Satışı Gerçekleşen Nominal Tutar (TL)]] -> 191,000,000.00
A114: 112 | B114: TÜRKİYE VAKIFLAR BANKASI T.A.O | C114: Banka | D114: Borçlanma Aracı | E114: 2019-05-28 | G114: 2019-07-04 | H114: NİTELİKLİ | I114: 3,000,000,000.00 | J114: =Table5402945[[#This Row],[Yurtiçi İhraç Limiti Nominal Tutar (TL)]]/5.6035 -> 535,379,673.42 | K114: 0.00 | L114: =Table5402945[[#This Row],[Yurtiçi İhraç Limiti Nominal Tutar (TL)]]-Table5402945[[#This Row],[Yurtiçi Satışı Gerçekleşen Nominal Tutar (TL)]] -> 3,000,000,000.00
A115: 113 | B115: UŞAK SERAMİK SANAYİ A.Ş. | C115: Reel Sektör | D115: Borçlanma Aracı | E115: 2019-05-28 | G115: 2019-06-27 | H115: NİTELİKLİ | I115: 50,000,000.00 | J115: =Table5402945[[#This Row],[Yurtiçi İhraç Limiti Nominal Tutar (TL)]]/5.7769 -> 8,655,161.07 | K115: 30,000,000.00 | L115: =Table5402945[[#This Row],[Yurtiçi İhraç Limiti Nominal Tutar (TL)]]-Table5402945[[#This Row],[Yurtiçi Satışı Gerçekleşen Nominal Tutar (TL)]] -> 20,000,000.00
A116: 114 | B116: DENİZ FAKTORİNG A.Ş. | C116: Finansal Kurum | D116: Borçlanma Aracı | E116: 2019-05-28 | G116: 2019-06-27 | H116: NİTELİKLİ | I116: 604,955,000.00 | J116: =Table5402945[[#This Row],[Yurtiçi İhraç Limiti Nominal Tutar (TL)]]/5.7769 -> 104,719,659.33 | K116: 603,000,000.00 | L116: =Table5402945[[#This Row],[Yurtiçi İhraç Limiti Nominal Tutar (TL)]]-Table5402945[[#This Row],[Yurtiçi Satışı Gerçekleşen Nominal Tutar (TL)]] -> 1,955,000.00
A117: 115 | B117: İŞ FAKTORİNG A.Ş. | C117: Finansal Kurum | D117: Borçlanma Aracı | E117: 2019-05-29 | G117: 2019-06-27 | H117: NİTELİKLİ / TAHSİSLİ | I117: 764,300,000.00 | J117: =Table5402945[[#This Row],[Yurtiçi İhraç Limiti Nominal Tutar (TL)]]/5.7769 -> 132,302,792.15 | K117: 291,000,000.00 | L117: =Table5402945[[#This Row],[Yurtiçi İhraç Limiti Nominal Tutar (TL)]]-Table5402945[[#This Row],[Yurtiçi Satışı Gerçekleşen Nominal Tutar (TL)]] -> 473,300,000.00
A118: 116 | B118: BANKPOZİTİF KREDİ VE KALKINMA BANKASI AŞ | C118: Banka | D118: Borçlanma Aracı | E118: 2019-05-30 | G118: 2019-09-05 | H118: NİTELİKLİ | I118: 750,000,000.00 | J118: =Table5402945[[#This Row],[Yurtiçi İhraç Limiti Nominal Tutar (TL)]]/5.6848 -> 131,930,762.74 | K118: 0.00 | L118: =Table5402945[[#This Row],[Yurtiçi İhraç Limiti Nominal Tutar (TL)]]-Table5402945[[#This Row],[Yurtiçi Satışı Gerçekleşen Nominal Tutar (TL)]] -> 750,000,000.00
A119: 117 | B119: İŞ YATIRIM MENKUL DEĞERLER A.Ş. | C119: Finansal Kurum | D119: Borçlanma Aracı | E119: 2019-06-10 | G119: 2019-06-20 | H119: NİTELİKLİ / TAHSİSLİ | I119: 2,100,000,000.00 | J119: =Table5402945[[#This Row],[Yurtiçi İhraç Limiti Nominal Tutar (TL)]]/5.7414 -> 365,764,447.70 | K119: 2,089,525,000.00 | L119: =Table5402945[[#This Row],[Yurtiçi İhraç Limiti Nominal Tutar (TL)]]-Table5402945[[#This Row],[Yurtiçi Satışı Gerçekleşen Nominal Tutar (TL)]] -> 10,475,000.00
A120: 118 | B120: BAŞER FAKTORİNG A.Ş. | C120: Finansal Kurum | D120: Borçlanma Aracı | E120: 2019-06-10 | G120: 2019-06-27 | H120: NİTELİKLİ | I120: 10,000,000.00 | J120: =Table5402945[[#This Row],[Yurtiçi İhraç Limiti Nominal Tutar (TL)]]/5.7769 -> 1,731,032.21 | K120: 10,000,000.00 | L120: =Table5402945[[#This Row],[Yurtiçi İhraç Limiti Nominal Tutar (TL)]]-Table5402945[[#This Row],[Yurtiçi Satışı Gerçekleşen Nominal Tutar (TL)]] -> 0.00
A121: 119 | B121: DORUK FAKTORİNG A.Ş. | C121: Finansal Kurum | D121: Borçlanma Aracı | E121: 2019-06-12 | G121: 2019-07-11 | H121: NİTELİKLİ | I121: 120,000,000.00 | J121: =Table5402945[[#This Row],[Yurtiçi İhraç Limiti Nominal Tutar (TL)]]/5.6767 -> 21,139,042.05 | K121: 68,000,000.00 | L121: =Table5402945[[#This Row],[Yurtiçi İhraç Limiti Nominal Tutar (TL)]]-Table5402945[[#This Row],[Yurtiçi Satışı Gerçekleşen Nominal Tutar (TL)]] -> 52,000,000.00
A122: 120 | B122: TÜRK EKONOMİ BANKASI A.Ş. | C122: Banka | D122: Borçlanma Aracı | E122: 2019-06-12 | G122: 2019-07-04 | H122: YURTDIŞI | I122: 0.00 | J122: =Table5402945[[#This Row],[Yurtiçi İhraç Limiti Nominal Tutar (TL)]]/5.6767 -> 0.00 | K122: 0.00 | L122: =Table5402945[[#This Row],[Yurtiçi İhraç Limiti Nominal Tutar (TL)]]-Table5402945[[#This Row],[Yurtiçi Satışı Gerçekleşen Nominal Tutar (TL)]] -> 0.00 | M122: 100,000,000 | N122: Euro | O122: 100,000,000.00 | P122: 0.00 | Q122: 667,410,000.00
A123: 121 | B123: AKFEN HOLDİNG A.Ş. | C123: Reel Sektör | D123: Borçlanma Aracı | E123: 2019-06-12 | G123: 2019-07-11 | H123: NİTELİKLİ | I123: 600,000,000.00 | J123: =Table5402945[[#This Row],[Yurtiçi İhraç Limiti Nominal Tutar (TL)]]/5.6767 -> 105,695,210.25 | K123: 200,000,000.00 | L123: =Table5402945[[#This Row],[Yurtiçi İhraç Limiti Nominal Tutar (TL)]]-Table5402945[[#This Row],[Yurtiçi Satışı Gerçekleşen Nominal Tutar (TL)]] -> 400,000,000.00
A124: 122 | B124: QNB FİNANS FİNANSAL KİRALAMA A.Ş. | C124: Finansal Kurum | D124: Borçlanma Aracı | E124: 2019-06-12 | G124: 2019-06-27 | H124: NİTELİKLİ / TAHSİSLİ | I124: 2,000,000,000.00 | J124: =Table5402945[[#This Row],[Yurtiçi İhraç Limiti Nominal Tutar (TL)]]/5.7769 -> 346,206,442.90 | K124: 338,980,000.00 | L124: =Table5402945[[#This Row],[Yurtiçi İhraç Limiti Nominal Tutar (TL)]]-Table5402945[[#This Row],[Yurtiçi Satışı Gerçekleşen Nominal Tutar (TL)]] -> 1,661,020,000.00
A125: 123 | B125: TERA YATIRIM MENKUL DEĞERLER A.Ş. | C125: Finansal Kurum | D125: Borçlanma Aracı | E125: 2019-06-18 | G125: 2019-07-04 | H125: NİTELİKLİ / TAHSİSLİ | I125: 71,985,403.00 | J125: =Table5402945[[#This Row],[Yurtiçi İhraç Limiti Nominal Tutar (TL)]]/5.6035 -> 12,846,507.18 | K125: 30,000,000.00 | L125: =Table5402945[[#This Row],[Yurtiçi İhraç Limiti Nominal Tutar (TL)]]-Table5402945[[#This Row],[Yurtiçi Satışı Gerçekleşen Nominal Tutar (TL)]] -> 41,985,403.00
A126: 124 | B126: İŞ FİNANSAL KİRALAMA A.Ş. | C126: Finansal Kurum | D126: Borçlanma Aracı | E126: 2019-06-18 | G126: 2019-07-04 | H126: NİTELİKLİ / TAHSİSLİ | I126: 4,560,000,000.00 | J126: =Table5402945[[#This Row],[Yurtiçi İhraç Limiti Nominal Tutar (TL)]]/5.6035 -> 813,777,103.60 | K126: 527,000,000.00 | L126: =Table5402945[[#This Row],[Yurtiçi İhraç Limiti Nominal Tutar (TL)]]-Table5402945[[#This Row],[Yurtiçi Satışı Gerçekleşen Nominal Tutar (TL)]] -> 4,033,000,000.00
A127: 125 | B127: ŞEKERBANK T.A.Ş. | C127: Banka | D127: Borçlanma Aracı | E127: 2019-06-18 | G127: 2019-07-11 | H127: NİTELİKLİ | I127: 500,000,000.00 | J127: =Table5402945[[#This Row],[Yurtiçi İhraç Limiti Nominal Tutar (TL)]]/5.6767 -> 88,079,341.87 | K127: 0.00 | L127: =Table5402945[[#This Row],[Yurtiçi İhraç Limiti Nominal Tutar (TL)]]-Table5402945[[#This Row],[Yurtiçi Satışı Gerçekleşen Nominal Tutar (TL)]] -> 500,000,000.00
A128: 126 | B128: TURKCELL FİNANSMAN A.Ş. | C128: Finansal Kurum | D128: Borçlanma Aracı | E128: 2019-06-20 | G128: 2019-06-27 | H128: NİTELİKLİ / TAHSİSLİ | I128: 500,000,000.00 | J128: =Table5402945[[#This Row],[Yurtiçi İhraç Limiti Nominal Tutar (TL)]]/5.7769 -> 86,551,610.73 | K128: 0.00 | L128: =Table5402945[[#This Row],[Yurtiçi İhraç Limiti Nominal Tutar (TL)]]-Table5402945[[#This Row],[Yurtiçi Satışı Gerçekleşen Nominal Tutar (TL)]] -> 500,000,000.00
A129: 127 | B129: OYAK YATIRIM MENKUL DEĞERLER A.Ş. | C129: Finansal Kurum | D129: Borçlanma Aracı | E129: 2019-06-20 | G129: 2019-07-04 | H129: NİTELİKLİ | I129: 258,000,000.00 | J129: =Table5402945[[#This Row],[Yurtiçi İhraç Limiti Nominal Tutar (TL)]]/5.6035 -> 46,042,651.91 | K129: 198,000,000.00 | L129: =Table5402945[[#This Row],[Yurtiçi İhraç Limiti Nominal Tutar (TL)]]-Table5402945[[#This Row],[Yurtiçi Satışı Gerçekleşen Nominal Tutar (TL)]] -> 60,000,000.00
A130: 128 | B130: OTOKOÇ OTOMOTİV SANAYİ TİCARET A.Ş. | C130: Reel Sektör | D130: Borçlanma Aracı | E130: 2019-06-21 | G130: 2019-07-04 | H130: NİTELİKLİ | I130: 500,000,000.00 | J130: =Table5402945[[#This Row],[Yurtiçi İhraç Limiti Nominal Tutar (TL)]]/5.6035 -> 89,229,945.57 | K130: 200,000,000.00 | L130: =Table5402945[[#This Row],[Yurtiçi İhraç Limiti Nominal Tutar (TL)]]-Table5402945[[#This Row],[Yurtiçi Satışı Gerçekleşen Nominal Tutar (TL)]] -> 300,000,000.00
A131: 129 | B131: YAPI KREDİ FAKTORİNG A.Ş. | C131: Finansal Kurum | D131: Borçlanma Aracı | E131: 2019-06-24 | G131: 2019-07-04 | H131: NİTELİKLİ / TAHSİSLİ | I131: 773,000,000.00 | J131: =Table5402945[[#This Row],[Yurtiçi İhraç Limiti Nominal Tutar (TL)]]/5.6035 -> 137,949,495.85 | K131: 220,480,000.00 | L131: =Table5402945[[#This Row],[Yurtiçi İhraç Limiti Nominal Tutar (TL)]]-Table5402945[[#This Row],[Yurtiçi Satışı Gerçekleşen Nominal Tutar (TL)]] -> 552,520,000.00
A132: 130 | B132: MİGROS TİCARET A.Ş. | C132: Reel Sektör | D132: Borçlanma Aracı | E132: 2019-06-26 | G132: 2019-07-18 | H132: NİTELİKLİ / TAHSİSLİ | I132: 1,000,000,000.00 | J132: =Table5402945[[#This Row],[Yurtiçi İhraç Limiti Nominal Tutar (TL)]]/5.7014 -> 175,395,516.89 | K132: 200,000,000.00 | L132: =Table5402945[[#This Row],[Yurtiçi İhraç Limiti Nominal Tutar (TL)]]-Table5402945[[#This Row],[Yurtiçi Satışı Gerçekleşen Nominal Tutar (TL)]] -> 800,000,000.00
A133: 131 | B133: DESTEK VARLIK YÖNETİM A.Ş. (Yeni Unvan; Deren Varlık Yönetim A.Ş.) | C133: Finansal Kurum | D133: Borçlanma Aracı | E133: 2019-06-26 | G133: 2019-08-08 | H133: NİTELİKLİ / TAHSİSLİ | I133: 17,000,000.00 | J133: =Table5402945[[#This Row],[Yurtiçi İhraç Limiti Nominal Tutar (TL)]]/5.7014 -> 2,981,723.79 | K133: 9,000,000.00 | L133: =Table5402945[[#This Row],[Yurtiçi İhraç Limiti Nominal Tutar (TL)]]-Table5402945[[#This Row],[Yurtiçi Satışı Gerçekleşen Nominal Tutar (TL)]] -> 8,000,000.00
A134: 132 | B134: BAŞKENT ELEKTRİK DAĞITIM A.Ş. | C134: Reel Sektör | D134: Borçlanma Aracı | E134: 2019-06-26 | G134: 2019-07-25 | H134: NİTELİKLİ / TAHSİSLİ | I134: 1,000,000,000.00 | J134: =Table5402945[Yurtiçi İhraç Limiti Nominal Tutar (TL)]/5.7093 -> 175,152,820.84 | K134: 0.00 | L134: =Table5402945[Yurtiçi İhraç Limiti Nominal Tutar (TL)]-Table5402945[Yurtiçi Satışı Gerçekleşen Nominal Tutar (TL)] -> 1,000,000,000.00
A135: 133 | B135: ŞEKER FAKTORİNG A.Ş. | C135: Finansal Kurum | D135: Borçlanma Aracı | E135: 2019-06-28 | G135: 2019-08-01 | H135: NİTELİKLİ | I135: 142,000,000.00 | J135: =Table5402945[Yurtiçi İhraç Limiti Nominal Tutar (TL)]/5.7093 -> 24,871,700.56 | K135: 45,440,200.00 | L135: =Table5402945[Yurtiçi İhraç Limiti Nominal Tutar (TL)]-Table5402945[Yurtiçi Satışı Gerçekleşen Nominal Tutar (TL)] -> 96,559,800.00
A136: 134 | B136: LİDER FAKTORİNG A.Ş. | C136: Finansal Kurum | D136: Borçlanma Aracı | E136: 2019-06-28 | F136: 2019-07-31 | J136: =Table5402945[Yurtiçi İhraç Limiti Nominal Tutar (TL)]/5.7093 -> 0.00 | L136: =Table5402945[Yurtiçi İhraç Limiti Nominal Tutar (TL)]-Table5402945[Yurtiçi Satışı Gerçekleşen Nominal Tutar (TL)] -> 0.00
A137: 135 | B137: AK YATIRIM MENKUL DEĞERLER A.Ş. | C137: Finansal Kurum | D137: Borçlanma Aracı | E137: 2019-07-01 | G137: 2019-07-25 | H137: NİTELİKLİ | I137: 1,050,000,000.00 | J137: =Table5402945[Yurtiçi İhraç Limiti Nominal Tutar (TL)]/5.7093 -> 183,910,461.88 | K137: 522,941,000.00 | L137: =Table5402945[Yurtiçi İhraç Limiti Nominal Tutar (TL)]-Table5402945[Yurtiçi Satışı Gerçekleşen Nominal Tutar (TL)] -> 527,059,000.00
A138: 136 | B138: İNFO YATIRIM MENKUL DEĞERLER A.Ş. | C138: Finansal Kurum | D138: Borçlanma Aracı | E138: 2019-07-03 | G138: 2019-08-29 | H138: NİTELİKLİ | I138: 64,000,000.00 | J138: =Table5402945[Yurtiçi İhraç Limiti Nominal Tutar (TL)]/5.7093 -> 11,209,780.53 | K138: 57,500,000.00 | L138: =Table5402945[Yurtiçi İhraç Limiti Nominal Tutar (TL)]-Table5402945[Yurtiçi Satışı Gerçekleşen Nominal Tutar (TL)] -> 6,500,000.00
A139: 137 | B139: İSTANBUL FAKTORİNG A.Ş. | C139: Finansal Kurum | D139: Borçlanma Aracı | E139: 2019-07-05 | G139: 2019-08-01 | H139: TAHSİSLİ | I139: 50,000,000.00 | J139: =Table5402945[Yurtiçi İhraç Limiti Nominal Tutar (TL)]/5.7093 -> 8,757,641.04 | K139: 5,000,000.00 | L139: =Table5402945[Yurtiçi İhraç Limiti Nominal Tutar (TL)]-Table5402945[Yurtiçi Satışı Gerçekleşen Nominal Tutar (TL)] -> 45,000,000.00
A140: 138 | B140: TÜRKİYE VAKIFLAR BANKASI T.A.O | C140: Banka | D140: Borçlanma Aracı | E140: 2019-07-09 | G140: 2019-08-08 | H140: HALKA ARZ/ NİTELİKLİ/ TAHSİSLİ | I140: 25,000,000,000.00 | J140: =Table5402945[Yurtiçi İhraç Limiti Nominal Tutar (TL)]/5.7093 -> 4,378,820,520.90 | K140: 8,522,192,906.00 | L140: =Table5402945[Yurtiçi İhraç Limiti Nominal Tutar (TL)]-Table5402945[Yurtiçi Satışı Gerçekleşen Nominal Tutar (TL)] -> 16,477,807,094.00
A141: 139 | B141: TÜRKİYE SINAİ KALKINMA BANKASI A.Ş. | C141: Banka | D141: Borçlanma Aracı | E141: 2019-07-09 | G141: 2019-07-25 | H141: YURTDIŞI | J141: =Table5402945[Yurtiçi İhraç Limiti Nominal Tutar (TL)]/5.7093 -> 0.00 | L141: =Table5402945[Yurtiçi İhraç Limiti Nominal Tutar (TL)]-Table5402945[Yurtiçi Satışı Gerçekleşen Nominal Tutar (TL)] -> 0.00 | M141: 600,000,000 | N141: ABD Doları | O141: 0.00 | P141: 600,000,000.00 | Q141: 0.00
A142: 140 | B142: BORUSAN YATIRIM VE PAZARLAMA A.Ş. | C142: Reel Sektör | D142: Borçlanma Aracı | E142: 2019-07-09 | G142: 2019-08-08 | H142: NİTELİKLİ / TAHSİSLİ | I142: 1,000,000,000.00 | J142: =Table5402945[Yurtiçi İhraç Limiti Nominal Tutar (TL)]/5.7093 -> 175,152,820.84 | K142: 0.00 | L142: =Table5402945[Yurtiçi İhraç Limiti Nominal Tutar (TL)]-Table5402945[Yurtiçi Satışı Gerçekleşen Nominal Tutar (TL)] -> 1,000,000,000.00
A143: 141 | B143: ÇAĞDAŞ FAKTORİNG A.Ş. | C143: Finansal Kurum | D143: Borçlanma Aracı | E143: 2017-07-10 | G143: 2019-07-25 | H143: NİTELİKLİ / TAHSİSLİ | I143: 180,000,000.00 | J143: =Table5402945[Yurtiçi İhraç Limiti Nominal Tutar (TL)]/5.7093 -> 31,527,507.75 | K143: 0.00 | L143: =Table5402945[Yurtiçi İhraç Limiti Nominal Tutar (TL)]-Table5402945[Yurtiçi Satışı Gerçekleşen Nominal Tutar (TL)] -> 180,000,000.00
A144: 142 | B144: TAM FAKTORİNG A.Ş. | C144: Finansal Kurum | D144: Borçlanma Aracı | E144: 2017-07-10 | G144: 2019-08-08 | H144: NİTELİKLİ / TAHSİSLİ | I144: 200,000,000.00 | J144: =Table5402945[Yurtiçi İhraç Limiti Nominal Tutar (TL)]/5.7093 -> 35,030,564.17 | K144: 38,000,000.00 | L144: =Table5402945[Yurtiçi İhraç Limiti Nominal Tutar (TL)]-Table5402945[Yurtiçi Satışı Gerçekleşen Nominal Tutar (TL)] -> 162,000,000.00
A145: 143 | B145: MLP SAĞLIK HİZMETLERİ A.Ş. | C145: Reel Sektör | D145: Borçlanma Aracı | E145: 2019-07-11 | G145: 2019-08-08 | H145: NİTELİKLİ | I145: 500,000,000.00 | J145: =Table5402945[Yurtiçi İhraç Limiti Nominal Tutar (TL)]/5.7093 -> 87,576,410.42 | K145: 150,000,000.00 | L145: =Table5402945[Yurtiçi İhraç Limiti Nominal Tutar (TL)]-Table5402945[Yurtiçi Satışı Gerçekleşen Nominal Tutar (TL)] -> 350,000,000.00
A146: 144 | B146: AKTİF YATIRIM BANKASI A.Ş. | C146: Banka | D146: Borçlanma Aracı | E146: 2019-07-11 | G146: 2019-07-25 | H146: NİTELİKLİ | I146: 1,000,000,000.00 | J146: =Table5402945[Yurtiçi İhraç Limiti Nominal Tutar (TL)]/5.7093 -> 175,152,820.84 | K146: 60,000,000.00 | L146: =Table5402945[Yurtiçi İhraç Limiti Nominal Tutar (TL)]-Table5402945[Yurtiçi Satışı Gerçekleşen Nominal Tutar (TL)] -> 940,000,000.00
A147: 145 | B147: DENİZ FİNANSAL KİRALAMA A.Ş. | C147: Finansal Kurum | D147: Borçlanma Aracı | E147: 2019-07-12 | G147: 2019-08-01 | H147: NİTELİKLİ | I147: 848,000,000.00 | J147: =Table5402945[Yurtiçi İhraç Limiti Nominal Tutar (TL)]/5.7093 -> 148,529,592.07 | K147: 755,000,000.00 | L147: =Table5402945[Yurtiçi İhraç Limiti Nominal Tutar (TL)]-Table5402945[Yurtiçi Satışı Gerçekleşen Nominal Tutar (TL)] -> 93,000,000.00
A148: 146 | B148: QNB FİNANSBANK A.Ş. | C148: Banka | D148: Borçlanma Aracı | E148: 2019-07-16 | G148: 2019-08-08 | H148: HALKA ARZ/ NİTELİKLİ/ TAHSİSLİ | I148: 30,000,000,000.00 | J148: =Table5402945[Yurtiçi İhraç Limiti Nominal Tutar (TL)]/5.7093 -> 5,254,584,625.09 | K148: 6,817,160,500.00 | L148: =Table5402945[Yurtiçi İhraç Limiti Nominal Tutar (TL)]-Table5402945[Yurtiçi Satışı Gerçekleşen Nominal Tutar (TL)] -> 23,182,839,500.00
A149: 147 | B149: PASHA YATIRIM BANKASI A.Ş. | C149: Banka | D149: Borçlanma Aracı | E149: 2019-07-16 | G149: 2019-08-15 | H149: YURTDIŞI | J149: =Table5402945[Yurtiçi İhraç Limiti Nominal Tutar (TL)]/5.7093 -> 0.00 | L149: =Table5402945[Yurtiçi İhraç Limiti Nominal Tutar (TL)]-Table5402945[Yurtiçi Satışı Gerçekleşen Nominal Tutar (TL)] -> 0.00 | M149: 50,000,000 | N149: ABD Doları | O149: 3,300,000.00 | P149: =[1]!Table5402945[[#This Row],[YURTDIŞI İhraç Limiti Nominal Tutar]]-[1]!Table5402945[[#This Row],[YURTDIŞI Satışı Gerçekleşen Nominal Tutar]] ->  | Q149: 22,024,530.00
A150: 148 | B150: ALTERNATİF FİNANSAL KİRALAMA A.Ş. | C150: Finansal Kurum | D150: Borçlanma Aracı | E150: 2019-07-17 | G150: 2019-09-05 | H150: NİTELİKLİ | I150: 540,000,000.00 | J150: =Table5402945[Yurtiçi İhraç Limiti Nominal Tutar (TL)]/5.7093 -> 94,582,523.25 | K150: 0.00 | L150: =Table5402945[Yurtiçi İhraç Limiti Nominal Tutar (TL)]-Table5402945[Yurtiçi Satışı Gerçekleşen Nominal Tutar (TL)] -> 540,000,000.00
A151: 149 | B151: KOTON MAĞAZACILIK TEKSTİL SANAYİ VE TİCARET A.Ş. | C151: Reel Sektör | D151: Borçlanma Aracı | E151: 2019-07-17 | F151: 2019-08-23 | J151: =Table5402945[Yurtiçi İhraç Limiti Nominal Tutar (TL)]/5.7093 -> 0.00 | L151: =Table5402945[Yurtiçi İhraç Limiti Nominal Tutar (TL)]-Table5402945[Yurtiçi Satışı Gerçekleşen Nominal Tutar (TL)] -> 0.00
A152: 150 | B152: DORUK FİNANSMAN A.Ş. | C152: Finansal Kurum | D152: Borçlanma Aracı | E152: 2019-07-18 | G152: 2019-09-12 | H152: NİTELİKLİ | I152: 50,000,000.00 | J152: =Table5402945[Yurtiçi İhraç Limiti Nominal Tutar (TL)]/5.7093 -> 8,757,641.04 | K152: 25,000,000.00 | L152: =Table5402945[Yurtiçi İhraç Limiti Nominal Tutar (TL)]-Table5402945[Yurtiçi Satışı Gerçekleşen Nominal Tutar (TL)] -> 25,000,000.00
A153: 151 | B153: DENİZBANK A.Ş. | C153: Banka | D153: Borçlanma Aracı | E153: 2019-07-23 | G153: 2019-08-29 | H153: HALKA ARZ/ NİTELİKLİ/ TAHSİSLİ | I153: 20,000,000,000.00 | J153: =Table5402945[Yurtiçi İhraç Limiti Nominal Tutar (TL)]/5.7093 -> 3,503,056,416.72 | K153: 4,827,000,000.00 | L153: =Table5402945[Yurtiçi İhraç Limiti Nominal Tutar (TL)]-Table5402945[Yurtiçi Satışı Gerçekleşen Nominal Tutar (TL)] -> 15,173,000,000.00
A154: 152 | B154: ŞEKER FİNANSAL KİRALAMA A.Ş. | C154: Finansal Kurum | D154: Borçlanma Aracı | E154: 2019-07-24 | G154: 2019-08-29 | H154: HALKA ARZ/ NİTELİKLİ/ TAHSİSLİ | I154: 250,000,000.00 | J154: =Table5402945[Yurtiçi İhraç Limiti Nominal Tutar (TL)]/5.7093 -> 43,788,205.21 | K154: 220,000,000.00 | L154: =Table5402945[Yurtiçi İhraç Limiti Nominal Tutar (TL)]-Table5402945[Yurtiçi Satışı Gerçekleşen Nominal Tutar (TL)] -> 30,000,000.00
A155: 153 | B155: ALTERNATİFBANK A.Ş. | C155: Banka | D155: Borçlanma Aracı | E155: 2019-07-25 | G155: 2019-08-15 | H155: TAHSİSLİ | I155: 1,600,000,000.00 | J155: =Table5402945[Yurtiçi İhraç Limiti Nominal Tutar (TL)]/5.7093 -> 280,244,513.34 | K155: 1,051,182,000.00 | L155: =Table5402945[Yurtiçi İhraç Limiti Nominal Tutar (TL)]-Table5402945[Yurtiçi Satışı Gerçekleşen Nominal Tutar (TL)] -> 548,818,000.00
A156: 154 | B156: EREĞLİ TEKSTİL TURİZM SANAYİ VE TİCARET A.Ş. | C156: Reel Sektör | D156: Borçlanma Aracı | E156: 2019-07-29 | G156: 2019-08-15 | H156: NİTELİKLİ | I156: 400,000,000.00 | J156: =Table5402945[Yurtiçi İhraç Limiti Nominal Tutar (TL)]/5.7093 -> 70,061,128.33 | K156: 231,500,000.00 | L156: =Table5402945[Yurtiçi İhraç Limiti Nominal Tutar (TL)]-Table5402945[Yurtiçi Satışı Gerçekleşen Nominal Tutar (TL)] -> 168,500,000.00
A157: 155 | B157: NETLOG LOJİSTİK HİZMETLERİ A.Ş. | C157: Reel Sektör | D157: Borçlanma Aracı | E157: 2019-08-02 | G157: 2019-09-05 | H157: NİTELİKLİ / TAHSİSLİ | I157: 200,000,000.00 | J157: =Table5402945[Yurtiçi İhraç Limiti Nominal Tutar (TL)]/5.7093 -> 35,030,564.17 | K157: 0.00 | L157: =Table5402945[Yurtiçi İhraç Limiti Nominal Tutar (TL)]-Table5402945[Yurtiçi Satışı Gerçekleşen Nominal Tutar (TL)] -> 200,000,000.00
A158: 156 | B158: NUROL YATIRIM BANKASI A.Ş. | C158: Banka | D158: Borçlanma Aracı | E158: 2019-08-06 | G158: 2019-09-05 | H158: NİTELİKLİ | I158: 900,000,000.00 | J158: =Table5402945[Yurtiçi İhraç Limiti Nominal Tutar (TL)]/5.7093 -> 157,637,538.75 | K158: 630,000,000.00 | L158: =Table5402945[Yurtiçi İhraç Limiti Nominal Tutar (TL)]-Table5402945[Yurtiçi Satışı Gerçekleşen Nominal Tutar (TL)] -> 270,000,000.00
A159: 157 | B159: HUZUR FAKTORİNG A.Ş. | C159: Finansal Kurum | D159: Borçlanma Aracı | E159: 2019-08-06 | G159: 2019-08-29 | H159: NİTELİKLİ | I159: 100,000,000.00 | J159: =Table5402945[Yurtiçi İhraç Limiti Nominal Tutar (TL)]/5.7093 -> 17,515,282.08 | K159: 4,320,000.00 | L159: =Table5402945[Yurtiçi İhraç Limiti Nominal Tutar (TL)]-Table5402945[Yurtiçi Satışı Gerçekleşen Nominal Tutar (TL)] -> 95,680,000.00
A160: 158 | B160: ZORLU ENERJİ ELEKTRİK ÜRETİM A.Ş. | C160: Reel Sektör | D160: Borçlanma Aracı | E160: 2019-08-07 | G160: 2019-09-05 | H160: NİTELİKLİ | I160: 600,000,000.00 | J160: =Table5402945[Yurtiçi İhraç Limiti Nominal Tutar (TL)]/5.7093 -> 105,091,692.50 | K160: 429,160,000.00 | L160: =Table5402945[Yurtiçi İhraç Limiti Nominal Tutar (TL)]-Table5402945[Yurtiçi Satışı Gerçekleşen Nominal Tutar (TL)] -> 170,840,000.00
A161: 159 | B161: TÜRK EKONOMİ BANKASI A.Ş. | C161: Banka | D161: Borçlanma Aracı | E161: 2019-08-08 | G161: 2019-09-19 | H161: NİTELİKLİ | I161: 1,000,000,000.00 | J161: =Table5402945[Yurtiçi İhraç Limiti Nominal Tutar (TL)]/5.7093 -> 175,152,820.84 | K161: 0.00 | L161: =Table5402945[Yurtiçi İhraç Limiti Nominal Tutar (TL)]-Table5402945[Yurtiçi Satışı Gerçekleşen Nominal Tutar (TL)] -> 1,000,000,000.00
A162: 160 | B162: TÜRK HAVA YOLLARI A.Ş. | C162: Reel Sektör | D162: Borçlanma Aracı | E162: 2019-08-09 | G162: 2019-09-05 | H162: YURTDIŞI | J162: =Table5402945[Yurtiçi İhraç Limiti Nominal Tutar (TL)]/5.7093 -> 0.00 | L162: =Table5402945[Yurtiçi İhraç Limiti Nominal Tutar (TL)]-Table5402945[Yurtiçi Satışı Gerçekleşen Nominal Tutar (TL)] -> 0.00 | M162: 2,000,000,000 | N162: ABD Doları | O162: 0.00 | P162: 2,000,000,000.00 | Q162: 0.00
A163: 161 | B163: ERYAP MÜHENDİSLİK İNŞAAT TAAHHÜT TURİZM SANAYİ VE TİCARET A.Ş. | C163: Reel Sektör | D163: Borçlanma Aracı | E163: 2019-08-15 | G163: 2019-10-24 | H163: NİTELİKLİ / TAHSİSLİ | I163: 400,000,000.00 | J163: =Table5402945[Yurtiçi İhraç Limiti Nominal Tutar (TL)]/5.7093 -> 70,061,128.33 | K163: 250,000,000.00 | L163: =Table5402945[Yurtiçi İhraç Limiti Nominal Tutar (TL)]-Table5402945[Yurtiçi Satışı Gerçekleşen Nominal Tutar (TL)] -> 150,000,000.00
A164: 162 | B164: INVEST-AZ YATIRIM MENKUL DEĞERLER A.Ş. | C164: Finansal Kurum | D164: Borçlanma Aracı | E164: 2020-08-16 | G164: 2019-09-19 | H164: NİTELİKLİ / TAHSİSLİ | I164: 30,000,000.00 | J164: =Table5402945[Yurtiçi İhraç Limiti Nominal Tutar (TL)]/5.7093 -> 5,254,584.63 | K164: 3,000,000.00 | L164: =Table5402945[Yurtiçi İhraç Limiti Nominal Tutar (TL)]-Table5402945[Yurtiçi Satışı Gerçekleşen Nominal Tutar (TL)] -> 27,000,000.00
A165: 163 | B165: TÜRKİYE HALK BANKASI A.Ş. | C165: Banka | D165: Borçlanma Aracı | E165: 2020-08-20 | G165: 2019-08-29 | H165: HALKA ARZ/ NİTELİKLİ/ TAHSİSLİ | I165: 25,000,000,000.00 | J165: =Table5402945[Yurtiçi İhraç Limiti Nominal Tutar (TL)]/5.7093 -> 4,378,820,520.90 | K165: 5,023,500,000.00 | L165: =Table5402945[Yurtiçi İhraç Limiti Nominal Tutar (TL)]-Table5402945[Yurtiçi Satışı Gerçekleşen Nominal Tutar (TL)] -> 19,976,500,000.00
A166: 164 | B166: AKTİF YATIRIM BANKASI A.Ş. | C166: Banka | D166: Borçlanma Aracı | E166: 2020-08-22 | G166: 2019-09-05 | H166: HALKA ARZ/ NİTELİKLİ | I166: 1,750,000,000.00 | J166: =Table5402945[Yurtiçi İhraç Limiti Nominal Tutar (TL)]/5.7093 -> 306,517,436.46 | K166: 1,000,000,000.00 | L166: =Table5402945[Yurtiçi İhraç Limiti Nominal Tutar (TL)]-Table5402945[Yurtiçi Satışı Gerçekleşen Nominal Tutar (TL)] -> 750,000,000.00
A167: 165 | B167: ŞEKER YATIRIM MENKUL DEĞERLER A.Ş. | C167: Finansal Kurum | D167: Borçlanma Aracı | E167: 2020-08-23 | G167: 2020-09-12 | H167: NİTELİKLİ | I167: 110,000,000.00 | J167: =Table5402945[Yurtiçi İhraç Limiti Nominal Tutar (TL)]/5.7093 -> 19,266,810.29 | K167: 65,645,200.00 | L167: =Table5402945[Yurtiçi İhraç Limiti Nominal Tutar (TL)]-Table5402945[Yurtiçi Satışı Gerçekleşen Nominal Tutar (TL)] -> 44,354,800.00
A168: 166 | B168: YAPI KREDİ YATIRIM MENKUL DEĞERLER A.Ş. | C168: Finansal Kurum | D168: Borçlanma Aracı | E168: 2019-08-27 | G168: 2019-09-26 | H168: NİTELİKLİ / TAHSİSLİ | I168: 1,083,000,000.00 | J168: =Table5402945[Yurtiçi İhraç Limiti Nominal Tutar (TL)]/5.7093 -> 189,690,504.97 | K168: 752,250,000.00 | L168: =Table5402945[Yurtiçi İhraç Limiti Nominal Tutar (TL)]-Table5402945[Yurtiçi Satışı Gerçekleşen Nominal Tutar (TL)] -> 330,750,000.00
A169: 167 | B169: QNB FİNANS FAKTORİNG A.Ş. | C169: Finansal Kurum | D169: Borçlanma Aracı | E169: 2019-08-27 | G169: 2019-09-05 | H169: NİTELİKLİ / TAHSİSLİ | I169: 483,555,000.00 | J169: =Table5402945[Yurtiçi İhraç Limiti Nominal Tutar (TL)]/5.7093 -> 84,696,022.28 | K169: 169,330,100.00 | L169: =Table5402945[Yurtiçi İhraç Limiti Nominal Tutar (TL)]-Table5402945[Yurtiçi Satışı Gerçekleşen Nominal Tutar (TL)] -> 314,224,900.00
A170: 168 | B170: TÜRKİYE İŞ BANKASI A.Ş. | C170: Banka | D170: Borçlanma Aracı | E170: 2019-08-29 | G170: 2019-09-26 | H170: NİTELİKLİ | I170: 5,000,000,000.00 | J170: =Table5402945[Yurtiçi İhraç Limiti Nominal Tutar (TL)]/5.7093 -> 875,764,104.18 | K170: 0.00 | L170: =Table5402945[Yurtiçi İhraç Limiti Nominal Tutar (TL)]-Table5402945[Yurtiçi Satışı Gerçekleşen Nominal Tutar (TL)] -> 5,000,000,000.00
A171: 169 | B171: GARANTİ FİLO YÖNETİM HİZMETLERİ A.Ş. | C171: Reel Sektör | D171: Borçlanma Aracı | E171: 2019-08-29 | G171: 2019-09-26 | H171: NİTELİKLİ | I171: 60,000,000.00 | J171: =Table5402945[Yurtiçi İhraç Limiti Nominal Tutar (TL)]/5.7093 -> 10,509,169.25 | K171: 0.00 | L171: =Table5402945[Yurtiçi İhraç Limiti Nominal Tutar (TL)]-Table5402945[Yurtiçi Satışı Gerçekleşen Nominal Tutar (TL)] -> 60,000,000.00
A172: 170 | B172: İŞ YATIRIM MENKUL DEĞERLER A.Ş. | C172: Finansal Kurum | D172: Borçlanma Aracı | E172: 2019-09-02 | G172: 2019-09-19 | H172: NİTELİKLİ / TAHSİSLİ | I172: 2,300,000,000.00 | J172: =Table5402945[Yurtiçi İhraç Limiti Nominal Tutar (TL)]/5.7093 -> 402,851,487.92 | K172: 1,832,556,000.00 | L172: =Table5402945[Yurtiçi İhraç Limiti Nominal Tutar (TL)]-Table5402945[Yurtiçi Satışı Gerçekleşen Nominal Tutar (TL)] -> 467,444,000.00
A173: 171 | B173: TÜRKİYE GARANTİ BANKASI A.Ş. | C173: Banka | D173: Borçlanma Aracı | E173: 2019-09-02 | G173: 2019-09-26 | H173: NİTELİKLİ | I173: 7,000,000,000.00 | J173: =Table5402945[Yurtiçi İhraç Limiti Nominal Tutar (TL)]/5.7093 -> 1,226,069,745.85 | K173: 252,880,000.00 | L173: =Table5402945[Yurtiçi İhraç Limiti Nominal Tutar (TL)]-Table5402945[Yurtiçi Satışı Gerçekleşen Nominal Tutar (TL)] -> 6,747,120,000.00
A174: 172 | B174: TÜRKİYE VAKIFLAR BANKASI T.A.O | C174: Banka | D174: Borçlanma Aracı | E174: 2019-09-06 | G174: 2020-09-12 | H174: NİTELİKLİ | I174: 5,000,000,000.00 | J174: =Table5402945[Yurtiçi İhraç Limiti Nominal Tutar (TL)]/5.7093 -> 875,764,104.18 | K174: 725,000,000.00 | L174: =Table5402945[Yurtiçi İhraç Limiti Nominal Tutar (TL)]-Table5402945[Yurtiçi Satışı Gerçekleşen Nominal Tutar (TL)] -> 4,275,000,000.00
A175: 173 | B175: DENİZ YATIRIM MENKUL DEĞERLER A.Ş. | C175: Finansal Kurum | D175: Borçlanma Aracı | E175: 2019-09-09 | G175: 2019-09-26 | H175: NİTELİKLİ | I175: 1,200,000,000.00 | J175: =Table5402945[Yurtiçi İhraç Limiti Nominal Tutar (TL)]/5.7093 -> 210,183,385.00 | K175: 80,000,000.00 | L175: =Table5402945[Yurtiçi İhraç Limiti Nominal Tutar (TL)]-Table5402945[Yurtiçi Satışı Gerçekleşen Nominal Tutar (TL)] -> 1,120,000,000.00
A176: 174 | B176: BURGAN YATIRIM MENKUL DEĞERLER A.Ş. | C176: Finansal Kurum | D176: Borçlanma Aracı | E176: 2019-09-09 | G176: 2019-10-10 | H176: NİTELİKLİ | I176: 90,000,000.00 | J176: =Table5402945[Yurtiçi İhraç Limiti Nominal Tutar (TL)]/5.7093 -> 15,763,753.88 | L176: =Table5402945[Yurtiçi İhraç Limiti Nominal Tutar (TL)]-Table5402945[Yurtiçi Satışı Gerçekleşen Nominal Tutar (TL)] -> 90,000,000.00
A177: 175 | B177: BURGAN YATIRIM MENKUL DEĞERLER A.Ş. | C177: Finansal Kurum | D177: Borçlanma Aracı | E177: 2019-09-02 | G177: 2019-10-10 | H177: Tahsisli/Nitelikli Yatırımcı | I177: 100,000,000.00 | J177: 16,698,505.21
A178: 176 | B178: KAPİTAL FAKTORİNG A.Ş. | C178: Finansal Kurum | D178: Borçlanma Aracı
A179: 177 | B179: ÜNLÜ MENKUL DEĞERLER A.Ş. | C179: Finansal Kurum | D179: Borçlanma Aracı | E179: 2019-09-10 | G179: 2019-09-26 | H179: Nitelikli Yatırımcı | I179: 150,000,000.00 | J179: 26,347,684.68 | K179: 20,694,000.00 | L179: 129,306,000.00
A180: 178 | B180: BİRİKİM VARLIK YÖNETİMİ A.Ş. | C180: Finansal Kurum | D180: Borçlanma Aracı | E180: 2019-09-12 | G180: 3029-09-26 | H180: Nitelikli Yatırımcı | I180: 139,000,000.00 | J180: 24,245,520.54 | K180: 26,000,000.00 | L180: =Table5402945[[#This Row],[Yurtiçi İhraç Limiti Nominal Tutar (TL)]]-Table5402945[[#This Row],[Yurtiçi Satışı Gerçekleşen Nominal Tutar (TL)]] -> 113,000,000.00
A181: 179 | B181: VAKIF FAKTORİNG A.Ş. | C181: Finansal Kurum | D181: Borçlanma Aracı | L181: 0.00
A182: 180 | B182: NUROL YATIRIM BANKASI A.Ş. | C182: Banka | D182: Borçlanma Aracı | E182: 2019-12-06 | G182: 2019-12-26 | H182: Nitelikli Yatırımcı | I182: 600,000,000.00 | J182: 105,548,323.54 | K182: 0.00 | L182: 600,000,000.00
A183: 181 | B183: QNB FİNANS YATIRIM MENKUL DEĞERLER A.Ş.*** | C183: Finansal Kurum | D183: Borçlanma Aracı | E183: 2019-03-08 | G183: 2019-03-28 | H183: Tahsisli/Nitelikli Yatırımcı | I183: 530,000,000.00 | J183: 89,830,530.00 | K183: 420,591,500.00 | L183: 109,408,500.00
A184: 182 | B184: MERSİN ULUSLARARASI LİMAN İŞLETMECİLİĞİ A.Ş. | C184: Reel Sektör | D184: Borçlanma Aracı | E184: 2019-09-18 | G184: 2019-10-17 | H184: Yurtdışı | M184: 650,000,000.00 | N184: ABD Doları | O184: 600,000,000.00 | P184: 50,000,000.00 | Q184: 3,422,460,000.00
A185: 183 | B185: FİBABANKA A.Ş. | C185: Banka | D185: Borçlanma Aracı | E185: 2019-09-20 | G185: 2019-10-17 | H185: Tahsisli/Nitelikli Yatırımcı | I185: 3,500,000,000.00 | J185: 593,220,338.98 | K185: 0.00 | L185: 3,500,000,000.00
A186: 184 | B186: YAPI VE KREDİ BANKASI A.Ş. | C186: Banka | D186: Borçlanma Aracı | E186: 2019-09-20 | G186: 2019-10-24 | H186: Halka Arz/Nitelikli Yatırımcı | I186: 5,000,000,000.00 | J186: 847,457,627.12 | K186: 2,164,015,149.00 | L186: 2,835,984,851.00
A187: 185 | B187: YAPI VE KREDİ BANKASI A.Ş. | C187: Banka | D187: Borçlanma Aracı | E187: 2019-03-15 | G187: 2019-04-04 | H187: Yurtdışı | M187: 7,000,000,000.00 | N187: ABD Doları | O187: 0.00 | P187: 7,000,000,000.00
A188: 186 | B188: TÜRKİYE İŞ BANKASI A.Ş. | C188: Banka | D188: Borçlanma Aracı | E188: 2019-09-23 | G188: 2019-10-24 | H188: Halka Arz/Tahsisli/Nitelikli Yatırımcı | I188: 25,000,000,000.00 | J188: 4,339,750,377.56 | K188: 2,087,591,998.00 | L188: 22,912,408,002.00
A189: 187 | B189: TÜRKİYE İŞ BANKASI A.Ş. | C189: Banka | D189: Borçlanma Aracı | E189: 2018-12-28 | G189: 2019-01-24 | H189: Yurtdışı | M189: 5,000,000,000.00 | N189: ABD Doları | O189: 53,000,000.00 | P189: 4,947,000,000.00
A190: 188 | B190: HALK FİNANSAL KİRALAMA A.Ş. | C190: Finansal Kurum | D190: Borçlanma Aracı | E190: 2019-01-23 | G190: 2019-02-07 | H190: Nitelikli Yatırımcı | I190: 1,100,000,000.00 | J190: 210,482,003.79 | K190: 0.00 | L190: 1,100,000,000.00
A191: 189 | B191: ŞEKERBANK T.A.Ş. | C191: Banka | D191: Borçlanma Aracı | E191: 2019-06-17 | G191: 2019-07-11 | H191: Nitelikli Yatırımcı | I191: 500,000,000.00 | J191: 95,093,191.33 | K191: 0.00 | L191: 500,000,000.00
A192: 190 | B192: OPTİMA FAKTORİNG A.Ş. | C192: Finansal Kurum | D192: Borçlanma Aracı | E192: 2019-10-04 | G192: 2019-10-31 | H192: Nitelikli Yatırımcı | I192: 119,000,000.00 | J192: 20,599,283.35 | K192: 0.00 | L192: 119,000,000.00
A193: 191 | B193: ARENA FAKTORİNG A.Ş. | C193: Finansal Kurum | D193: Borçlanma Aracı | E193: 2019-10-07 | G193: 2019-10-24 | H193: Nitelikli Yatırımcı | I193: 70,000,000.00 | J193: 12,222,377.43 | K193: 0.00 | L193: 70,000,000.00
A194: 192 | B194: OYAK YATIRIM MENKUL DEĞERLER A.Ş. | C194: Finansal Kurum | D194: Borçlanma Aracı | E194: 2019-03-11 | G194: 2019-03-28 | H194: Nitelikli Yatırımcı | I194: 290,000,000.00 | J194: 51,347,427.32 | K194: 0.00 | L194: 290,000,000.00
A195: 193 | B195: AK FAKTORİNG A.Ş. | C195: Finansal Kurum | D195: Borçlanma Aracı | E195: 2019-12-09 | G195: 2019-12-12 | H195: Halka Arz/Tahsisli/Nitelikli Yatırımcı | I195: 205,000,000.00 | J195: 34,419,073.20 | K195: 23,870,000.00 | L195: 181,130,000.00
A196: 194 | B196: KORTEKS MENSUCAT SANAYİ VE TİCARET A.Ş. | C196: Reel Sektör | D196: Borçlanma Aracı | E196: 2019-10-17 | G196: 2019-11-14 | H196: Nitelikli Yatırımcı | I196: 600,000,000.00 | J196: 109,493,047.19 | K196: 83,480,000.00 | L196: 516,520,000.00
A197: 195 | B197: ATILIM FAKTORİNG A.Ş. | C197: Finansal Kurum | D197: Borçlanma Aracı | E197: 2019-10-18 | G197: 2019-11-07 | H197: Nitelikli Yatırımcı | I197: 50,000,000.00 | J197: 8,687,191.60 | K197: 10,000,000.00 | L197: 40,000,000.00
A198: 196 | B198: TACİRLER YATIRIM MENKUL DEĞERLER A.Ş. | C198: Finansal Kurum | D198: Borçlanma Aracı | E198: 2019-10-18 | G198: 2019-11-14 | H198: Nitelikli Yatırımcı | I198: 350,000,000.00 | J198: 60,594,518.79 | K198: 73,000,000.00 | L198: 277,000,000.00
A199: 197 | B199: AKBANK T.A.Ş. | C199: Banka | D199: Borçlanma Aracı | E199: 2019-10-21 | G199: 2019-11-21 | H199: Tahsisli/Nitelikli Yatırımcı | I199: 30,000,000,000.00 | J199: 5,255,413,075.47 | K199: 300,000,000.00 | L199: 29,700,000,000.00
A200: 198 | B200: GLOBAL MENKUL DEĞERLER A.Ş. | C200: Finansal Kurum | D200: Borçlanma Aracı | E200: 2019-10-18 | G200: 2019-11-14 | H200: Nitelikli Yatırımcı | I200: 100,000,000.00 | J200: 17,312,719.66 | K200: 0.00 | L200: 100,000,000.00
... 142 more rows
